Effective Date,Department,Supplier Name,Payment Date ,Amount**,Purpose of Spend,Merchant Category,Card Transaction
Statement 18/08/2016 -18/09/2016,Adults and Communities,AA STATIONERS LEICESTER,01/09/2016,20.97,Stationery - General,"Stationery, Office, and School Supply Stores",GPC
Statement 18/08/2016 -18/09/2016,Adults and Communities,Amazon Svcs Europe SAR,23/08/2016,15.87,Books - General,Book Stores,GPC
Statement 18/08/2016 -18/09/2016,Adults and Communities,Amazon Svcs Europe SAR,07/09/2016,7.35,Books - General,Book Stores,GPC
Statement 18/08/2016 -18/09/2016,Adults and Communities,Amazon Svcs Europe SAR,13/09/2016,138.25,Stationery - General,Book Stores,GPC
Statement 18/08/2016 -18/09/2016,Adults and Communities,Amazon Svcs Europe SAR,16/09/2016,16.92,Stationery - General,Book Stores,GPC
Statement 18/08/2016 -18/09/2016,Adults and Communities,Amazon UK Marketplace,18/08/2016,12.9,Books - General,Book Stores,GPC
Statement 18/08/2016 -18/09/2016,Adults and Communities,Amazon UK Marketplace,06/09/2016,51.9,Books - General,Book Stores,GPC
Statement 18/08/2016 -18/09/2016,Adults and Communities,Amazon UK Marketplace,06/09/2016,27.8,Books - General,Book Stores,GPC
Statement 18/08/2016 -18/09/2016,Adults and Communities,Amazon UK Marketplace,07/09/2016,7.09,Books - General,Book Stores,GPC
Statement 18/08/2016 -18/09/2016,Adults and Communities,Amazon UK Marketplace,15/09/2016,6.97,Books - General,Book Stores,GPC
Statement 18/08/2016 -18/09/2016,Adults and Communities,Amazon UK Marketplace,07/09/2016,27.58,Display/Conservn/Exhibitions - Exhibitions,Book Stores,GPC
Statement 18/08/2016 -18/09/2016,Adults and Communities,Amazon UK Marketplace,08/09/2016,4.49,Display/Conservn/Exhibitions - Exhibitions,Book Stores,GPC
Statement 18/08/2016 -18/09/2016,Adults and Communities,Amazon UK Marketplace,25/08/2016,94.5,IT Equipment - General,Miscellaneous and Specialty Retail Stores,GPC
Statement 18/08/2016 -18/09/2016,Adults and Communities,Amazon UK Marketplace,24/08/2016,15.07,Materials - General,Book Stores,GPC
Statement 18/08/2016 -18/09/2016,Adults and Communities,Amazon UK Marketplace,30/08/2016,-2.99,Materials - General,Miscellaneous and Specialty Retail Stores,GPC
Statement 18/08/2016 -18/09/2016,Adults and Communities,Amazon UK Marketplace,08/09/2016,28.78,Materials - General,Miscellaneous and Specialty Retail Stores,GPC
Statement 18/08/2016 -18/09/2016,Adults and Communities,Amazon UK Marketplace,13/09/2016,53.88,Materials - General,Miscellaneous and Specialty Retail Stores,GPC
Statement 18/08/2016 -18/09/2016,Adults and Communities,Amazon UK Marketplace,14/09/2016,13.33,Materials - General,Miscellaneous and Specialty Retail Stores,GPC
Statement 18/08/2016 -18/09/2016,Adults and Communities,Amazon UK Marketplace,14/09/2016,24.36,Materials - General,Miscellaneous and Specialty Retail Stores,GPC
Statement 18/08/2016 -18/09/2016,Adults and Communities,Amazon UK Marketplace,17/08/2016,16.79,Other Equipment & Materials - General,Miscellaneous and Specialty Retail Stores,GPC
Statement 18/08/2016 -18/09/2016,Adults and Communities,Amazon UK Marketplace,17/08/2016,11.83,Other Equipment & Materials - General,Miscellaneous and Specialty Retail Stores,GPC
Statement 18/08/2016 -18/09/2016,Adults and Communities,Amazon UK Marketplace,17/08/2016,43.93,Other Equipment & Materials - General,Miscellaneous and Specialty Retail Stores,GPC
Statement 18/08/2016 -18/09/2016,Adults and Communities,Amazon UK Marketplace,17/08/2016,13.37,Other Equipment & Materials - General,Miscellaneous and Specialty Retail Stores,GPC
Statement 18/08/2016 -18/09/2016,Adults and Communities,Amazon UK Marketplace,18/08/2016,14.99,Other Equipment & Materials - General,Book Stores,GPC
Statement 18/08/2016 -18/09/2016,Adults and Communities,Amazon UK Marketplace,18/08/2016,14.13,Other Equipment & Materials - General,Book Stores,GPC
Statement 18/08/2016 -18/09/2016,Adults and Communities,Amazon UK Marketplace,18/08/2016,5.99,Other Equipment & Materials - General,Miscellaneous and Specialty Retail Stores,GPC
Statement 18/08/2016 -18/09/2016,Adults and Communities,Amazon UK Marketplace,18/08/2016,9.9,Other Equipment & Materials - General,Miscellaneous and Specialty Retail Stores,GPC
Statement 18/08/2016 -18/09/2016,Adults and Communities,Amazon UK Marketplace,26/08/2016,2.81,Other Equipment & Materials - General,Miscellaneous and Specialty Retail Stores,GPC
Statement 18/08/2016 -18/09/2016,Adults and Communities,Amazon UK Marketplace,09/09/2016,1.26,Other Equipment & Materials - General,Miscellaneous and Specialty Retail Stores,GPC
Statement 18/08/2016 -18/09/2016,Adults and Communities,Amazon UK Marketplace,11/09/2016,10.4,Other Equipment & Materials - General,Miscellaneous and Specialty Retail Stores,GPC
Statement 18/08/2016 -18/09/2016,Adults and Communities,Amazon UK Marketplace,17/08/2016,4.16,Other Expenditure - General,Book Stores,GPC
Statement 18/08/2016 -18/09/2016,Adults and Communities,Amazon UK Marketplace,18/08/2016,22.46,Other Expenditure - General,Miscellaneous and Specialty Retail Stores,GPC
Statement 18/08/2016 -18/09/2016,Adults and Communities,Amazon UK Marketplace,19/08/2016,14.5,Other Expenditure - General,Miscellaneous and Specialty Retail Stores,GPC
Statement 18/08/2016 -18/09/2016,Adults and Communities,Amazon UK Marketplace,20/08/2016,2.34,Other Expenditure - General,Miscellaneous and Specialty Retail Stores,GPC
Statement 18/08/2016 -18/09/2016,Adults and Communities,Amazon UK Marketplace,07/09/2016,15.74,Other Expenditure - General,Book Stores,GPC
Statement 18/08/2016 -18/09/2016,Adults and Communities,Amazon UK Marketplace,07/09/2016,28.29,Other Expenditure - General,Book Stores,GPC
Statement 18/08/2016 -18/09/2016,Adults and Communities,Amazon UK Marketplace,07/09/2016,68.32,Other Expenditure - General,Miscellaneous and Specialty Retail Stores,GPC
Statement 18/08/2016 -18/09/2016,Adults and Communities,Amazon UK Marketplace,17/08/2016,16.99,Other Services - General,Book Stores,GPC
Statement 18/08/2016 -18/09/2016,Adults and Communities,Amazon UK Marketplace,17/08/2016,3,Postal Services - General,Miscellaneous and Specialty Retail Stores,GPC
Statement 18/08/2016 -18/09/2016,Adults and Communities,Amazon UK Marketplace,15/09/2016,1.4,Postal Services - General,Book Stores,GPC
Statement 18/08/2016 -18/09/2016,Adults and Communities,Amazon UK Marketplace,17/08/2016,17.7,Protective Clothing & Uniforms - General,Miscellaneous and Specialty Retail Stores,GPC
Statement 18/08/2016 -18/09/2016,Adults and Communities,Amazon UK Marketplace,19/08/2016,13.5,Stationery - General,Miscellaneous and Specialty Retail Stores,GPC
Statement 18/08/2016 -18/09/2016,Adults and Communities,Amazon UK Marketplace,30/08/2016,2.08,Stationery - General,Miscellaneous and Specialty Retail Stores,GPC
Statement 18/08/2016 -18/09/2016,Adults and Communities,Amazon UK Marketplace,13/09/2016,7.98,Stationery - General,Miscellaneous and Specialty Retail Stores,GPC
Statement 18/08/2016 -18/09/2016,Adults and Communities,Amazon UK Retail,30/08/2016,55.94,Books - General,Direct Marketers - Other,GPC
Statement 18/08/2016 -18/09/2016,Adults and Communities,Amazon UK Retail,15/09/2016,47.48,General Equipment - General,Direct Marketers - Other,GPC
Statement 18/08/2016 -18/09/2016,Adults and Communities,Amazon UK Retail,15/09/2016,12.99,General Equipment - General,Direct Marketers - Other,GPC
Statement 18/08/2016 -18/09/2016,Adults and Communities,Amazon UK Retail,23/08/2016,38.73,Materials - General,Direct Marketers - Other,GPC
Statement 18/08/2016 -18/09/2016,Adults and Communities,Amazon UK Retail,08/09/2016,23.46,Materials - General,Direct Marketers - Other,GPC
Statement 18/08/2016 -18/09/2016,Adults and Communities,Amazon UK Retail,08/09/2016,20.56,Materials - General,Direct Marketers - Other,GPC
Statement 18/08/2016 -18/09/2016,Adults and Communities,Amazon UK Retail,07/09/2016,12.98,Operational Equipment - DDA,Direct Marketers - Other,GPC
Statement 18/08/2016 -18/09/2016,Adults and Communities,Amazon UK Retail,17/08/2016,43.93,Other Equipment & Materials - General,Direct Marketers - Other,GPC
Statement 18/08/2016 -18/09/2016,Adults and Communities,Amazon UK Retail,17/08/2016,10.8,Other Equipment & Materials - General,Direct Marketers - Other,GPC
Statement 18/08/2016 -18/09/2016,Adults and Communities,Amazon UK Retail,17/08/2016,16.64,Other Equipment & Materials - General,Direct Marketers - Other,GPC
Statement 18/08/2016 -18/09/2016,Adults and Communities,Amazon UK Retail,02/09/2016,11.42,Other Equipment & Materials - General,Direct Marketers - Other,GPC
Statement 18/08/2016 -18/09/2016,Adults and Communities,Amazon UK Retail,04/09/2016,13.67,Other Equipment & Materials - General,Direct Marketers - Other,GPC
Statement 18/08/2016 -18/09/2016,Adults and Communities,Amazon UK Retail,22/08/2016,17.98,Other Expenditure - General,Direct Marketers - Other,GPC
Statement 18/08/2016 -18/09/2016,Adults and Communities,Amazon UK Retail,22/08/2016,28.96,Other Expenditure - General,Direct Marketers - Other,GPC
Statement 18/08/2016 -18/09/2016,Adults and Communities,Amazon UK Retail,22/08/2016,5.99,Other Expenditure - General,Direct Marketers - Other,GPC
Statement 18/08/2016 -18/09/2016,Adults and Communities,Amazon UK Retail,22/08/2016,-5.99,Other Expenditure - General,Direct Marketers - Other,GPC
Statement 18/08/2016 -18/09/2016,Adults and Communities,Amazon UK Retail,23/08/2016,7.99,Other Expenditure - General,Direct Marketers - Other,GPC
Statement 18/08/2016 -18/09/2016,Adults and Communities,Amazon UK Retail,06/09/2016,17.98,Other Expenditure - General,Direct Marketers - Other,GPC
Statement 18/08/2016 -18/09/2016,Adults and Communities,Amazon UK Retail,11/09/2016,20.44,Other Expenditure - General,Direct Marketers - Other,GPC
Statement 18/08/2016 -18/09/2016,Adults and Communities,Amazon UK Retail,15/09/2016,4.75,Postal Services - General,Direct Marketers - Other,GPC
Statement 18/08/2016 -18/09/2016,Adults and Communities,Amazon UK Retail,25/08/2016,16.76,Stationery - General,Direct Marketers - Other,GPC
Statement 18/08/2016 -18/09/2016,Adults and Communities,Amazon UK Retail,07/09/2016,27.3,Stationery - General,Direct Marketers - Other,GPC
Statement 18/08/2016 -18/09/2016,Adults and Communities,Amazon UK Retail,11/09/2016,27.3,Stationery - General,Direct Marketers - Other,GPC
Statement 18/08/2016 -18/09/2016,Adults and Communities,AMAZON UK RETAIL AMAZON.C,23/08/2016,16.75,Materials - General,Miscellaneous and Specialty Retail Stores,GPC
Statement 18/08/2016 -18/09/2016,Adults and Communities,AMAZON UK RETAIL AMAZON.C,06/09/2016,15.15,Materials - General,Miscellaneous and Specialty Retail Stores,GPC
Statement 18/08/2016 -18/09/2016,Adults and Communities,AMAZON UK RETAIL AMAZON.C,13/09/2016,24.11,Materials - General,Miscellaneous and Specialty Retail Stores,GPC
Statement 18/08/2016 -18/09/2016,Adults and Communities,AMAZON UK RETAIL AMAZON.C,16/08/2016,24.98,Other Equipment & Materials - General,Miscellaneous and Specialty Retail Stores,GPC
Statement 18/08/2016 -18/09/2016,Adults and Communities,AMAZON UK RETAIL AMAZON.C,17/08/2016,73.22,Other Equipment & Materials - General,Miscellaneous and Specialty Retail Stores,GPC
Statement 18/08/2016 -18/09/2016,Adults and Communities,AMBION VETERINARY,13/09/2016,45.71,Operational Equipment - General,Veterinary Services,GPC
Statement 18/08/2016 -18/09/2016,Adults and Communities,AMFBOWLING.CO.UK,30/08/2016,15.5,Other Services - General,"Membership Clubs (Sports, Recreation, Athletic), C",GPC
Statement 18/08/2016 -18/09/2016,Adults and Communities,ANCESTRY.CO.UK,20/08/2016,149.99,Other Equipment & Materials - General,Continuity/Subscription Merchants,GPC
Statement 18/08/2016 -18/09/2016,Adults and Communities,ANSTEY HARDWARE AND DIY,18/08/2016,4.08,Aids & Adaptations - Minor Adaptations,Hardware Stores,GPC
Statement 18/08/2016 -18/09/2016,Adults and Communities,ARGOS LTD,31/08/2016,33.32,Aids & Adaptations - Minor Adaptations,Discount Stores,GPC
Statement 18/08/2016 -18/09/2016,Adults and Communities,ARGOS LTD,09/09/2016,24.99,Furniture - General,Discount Stores,GPC
Statement 18/08/2016 -18/09/2016,Adults and Communities,ARGOS LTD,24/08/2016,24.99,Stationery - General,Discount Stores,GPC
Statement 18/08/2016 -18/09/2016,Adults and Communities,ARGOS RETAIL GROUP,19/08/2016,41.65,General Equipment - General,Discount Stores,GPC
Statement 18/08/2016 -18/09/2016,Adults and Communities,ARGOS RETAIL GROUP,24/08/2016,9.99,General Equipment - General,Discount Stores,GPC
Statement 18/08/2016 -18/09/2016,Adults and Communities,ARGOS RETAIL GROUP,15/09/2016,33.31,General Equipment - General,Discount Stores,GPC
Statement 18/08/2016 -18/09/2016,Adults and Communities,ARGOS RETAIL GROUP,19/08/2016,79.99,Operational Equipment - General,Discount Stores,GPC
Statement 18/08/2016 -18/09/2016,Adults and Communities,ARTDISCOUNT/GRANTH,18/08/2016,8.2,Other Equipment & Materials - General,"Stationery, Office, and School Supply Stores",GPC
Statement 18/08/2016 -18/09/2016,Adults and Communities,ASDA STORES 4477,23/08/2016,24.88,Materials - General,"Grocery Stores, Supermarkets",GPC
Statement 18/08/2016 -18/09/2016,Adults and Communities,ASDA SUPERSTORE,31/08/2016,2.82,Provisions - General,"Grocery Stores, Supermarkets",GPC
Statement 18/08/2016 -18/09/2016,Adults and Communities,AWARD/YESTERYEAR,09/09/2016,13.66,Other Equipment & Materials - General,"Jewelry-Watches, Clocks, and Silverware Stores",GPC
Statement 18/08/2016 -18/09/2016,Adults and Communities,B & Q 1012,02/09/2016,29.17,Aids & Adaptations - Minor Adaptations,"Building Materials, Lumber Stores",GPC
Statement 18/08/2016 -18/09/2016,Adults and Communities,B & Q 1043,24/08/2016,45.33,Aids & Adaptations - Minor Adaptations,"Building Materials, Lumber Stores",GPC
Statement 18/08/2016 -18/09/2016,Adults and Communities,B & Q 1043,25/08/2016,24.88,Operational Equipment - General,"Building Materials, Lumber Stores",GPC
Statement 18/08/2016 -18/09/2016,Adults and Communities,B & Q 1052,16/09/2016,60.11,R & M of Buildings - General,"Building Materials, Lumber Stores",GPC
Statement 18/08/2016 -18/09/2016,Adults and Communities,B & Q 1157,15/09/2016,14.36,Aids & Adaptations - Minor Adaptations,"Building Materials, Lumber Stores",GPC
Statement 18/08/2016 -18/09/2016,Adults and Communities,B & Q 1299,17/08/2016,20.5,Aids & Adaptations - Minor Adaptations,"Building Materials, Lumber Stores",GPC
Statement 18/08/2016 -18/09/2016,Adults and Communities,B & Q 1299,19/08/2016,30,Aids & Adaptations - Minor Adaptations,"Building Materials, Lumber Stores",GPC
Statement 18/08/2016 -18/09/2016,Adults and Communities,B & Q 1299,01/09/2016,13.56,Aids & Adaptations - Minor Adaptations,"Building Materials, Lumber Stores",GPC
Statement 18/08/2016 -18/09/2016,Adults and Communities,B&M RETAIL,10/09/2016,7.98,General Equipment - General,Discount Stores,GPC
Statement 18/08/2016 -18/09/2016,Adults and Communities,B&M RETAIL LTD,09/09/2016,24.98,Cleaning Materials - General,Discount Stores,GPC
Statement 18/08/2016 -18/09/2016,Adults and Communities,B&M RETAIL LTD,07/09/2016,13.98,Furniture - General,Discount Stores,GPC
Statement 18/08/2016 -18/09/2016,Adults and Communities,BC.BASECAMP 2997305,01/09/2016,15.3,IT Equipment - Licences,Membership Organizations-Not Elsewhere Classified,GPC
Statement 18/08/2016 -18/09/2016,Adults and Communities,BOC TEL ORDER,14/09/2016,4.81,Operational Equipment - General,Chemicals and Allied Products Not Elsewhere Classi,GPC
Statement 18/08/2016 -18/09/2016,Adults and Communities,BOOTS 0020,13/09/2016,24.9,Other Equipment & Materials - General,"Drug Stores, Pharmacies",GPC
Statement 18/08/2016 -18/09/2016,Adults and Communities,BOOTS HINCKLEY,23/08/2016,2.44,Other Services - General,"Drug Stores, Pharmacies",GPC
Statement 18/08/2016 -18/09/2016,Adults and Communities,C V PUBLISHERS LTD,26/08/2016,108.33,Other Expenditure - General,Miscellaneous Publishing and  Printing,GPC
Statement 18/08/2016 -18/09/2016,Adults and Communities,Care.com,02/09/2016,35,Publicity/Marketing - Information Provision,Advertising Services,GPC
Statement 18/08/2016 -18/09/2016,Adults and Communities,CENTRAL ENG COOP,18/09/2016,21.1,Materials - General,Department Stores,GPC
Statement 18/08/2016 -18/09/2016,Adults and Communities,CENTRAL ENG COOP,25/08/2016,5.72,Other Expenditure - General,Department Stores,GPC
Statement 18/08/2016 -18/09/2016,Adults and Communities,CENTRAL ENG COOP,20/08/2016,71.63,Provisions - General,Department Stores,GPC
Statement 18/08/2016 -18/09/2016,Adults and Communities,CENTRAL ENG COOP,21/08/2016,6.36,Provisions - General,Department Stores,GPC
Statement 18/08/2016 -18/09/2016,Adults and Communities,CENTRAL ENG COOP,23/08/2016,58.55,Provisions - General,Department Stores,GPC
Statement 18/08/2016 -18/09/2016,Adults and Communities,CENTRAL ENG COOP,24/08/2016,63.53,Provisions - General,Department Stores,GPC
Statement 18/08/2016 -18/09/2016,Adults and Communities,CENTRAL ENG COOP,27/08/2016,60.08,Provisions - General,Department Stores,GPC
Statement 18/08/2016 -18/09/2016,Adults and Communities,CENTRAL ENG COOP,30/08/2016,2.89,Provisions - General,Department Stores,GPC
Statement 18/08/2016 -18/09/2016,Adults and Communities,CENTRAL ENG COOP,30/08/2016,32.96,Provisions - General,Department Stores,GPC
Statement 18/08/2016 -18/09/2016,Adults and Communities,CENTRAL ENG COOP,31/08/2016,20.02,Provisions - General,Department Stores,GPC
Statement 18/08/2016 -18/09/2016,Adults and Communities,CENTRAL ENG COOP,02/09/2016,113.33,Provisions - General,Department Stores,GPC
Statement 18/08/2016 -18/09/2016,Adults and Communities,CENTRAL ENG COOP,08/09/2016,91.45,Provisions - General,Department Stores,GPC
Statement 18/08/2016 -18/09/2016,Adults and Communities,CENTRAL ENG COOP,10/09/2016,13.23,Provisions - General,Department Stores,GPC
Statement 18/08/2016 -18/09/2016,Adults and Communities,CENTRAL ENG COOP,12/09/2016,12.15,Provisions - General,Department Stores,GPC
Statement 18/08/2016 -18/09/2016,Adults and Communities,CENTRAL ENG COOP,15/09/2016,122.03,Provisions - General,Department Stores,GPC
Statement 18/08/2016 -18/09/2016,Adults and Communities,CENTRAL ENG COOP,15/09/2016,4.78,Provisions - General,Department Stores,GPC
Statement 18/08/2016 -18/09/2016,Adults and Communities,CHARNWOOD BOROUGH COUNCI,08/09/2016,2.2,Casual/Essential - General,Automobile Parking Lots and Garages,GPC
Statement 18/08/2016 -18/09/2016,Adults and Communities,CHARNWOOD BOROUGH COUNCI,16/09/2016,6,Casual/Essential - General,Automobile Parking Lots and Garages,GPC
Statement 18/08/2016 -18/09/2016,Adults and Communities,CHURCHILL CATERING LTD,24/08/2016,20,Other Expenditure - General,Fast-Food Restaurants (Quick Payment Service Pilot,GPC
Statement 18/08/2016 -18/09/2016,Adults and Communities,CITY & GUILDS,23/08/2016,726,Exam Fees - General,Charitable and Social Service Organizations,GPC
Statement 18/08/2016 -18/09/2016,Adults and Communities,CMPCARESHOP,07/09/2016,24.7,Furniture - General,Variety Stores,GPC
Statement 18/08/2016 -18/09/2016,Adults and Communities,COMPLETE COVER GRO,01/09/2016,0,Schools Agency staff - Teaching Staff,Insurance-Sales and Underwriting,GPC
Statement 18/08/2016 -18/09/2016,Adults and Communities,CROMWELL TOOLS,14/09/2016,35.04,Other Equipment & Materials - General,Hardware Equipment and Supplies,GPC
Statement 18/08/2016 -18/09/2016,Adults and Communities,DEBT RECOVERY PLUS LTD,02/09/2016,164.95,Schools Agency staff - Teaching Staff,Miscellaneous Personal Services-Not Elsewhere Clas,GPC
Statement 18/08/2016 -18/09/2016,Adults and Communities,DUNELM (SOFT FURNISHIN,06/09/2016,151.15,Furniture - General,"Drapery, Window Coverings, and Upholstery Stores",GPC
Statement 18/08/2016 -18/09/2016,Adults and Communities,DUNELM (SOFT FURNISHIN,17/09/2016,119.8,Materials - General,"Drapery, Window Coverings, and Upholstery Stores",GPC
Statement 18/08/2016 -18/09/2016,Adults and Communities,E COAST MAIN LN CO LTD,13/09/2016,13.5,Casual/Essential - General,Automobile Parking Lots and Garages,GPC
Statement 18/08/2016 -18/09/2016,Adults and Communities,EAST MIDLANDS TRAI,12/09/2016,24.7,Public Transport -  Staff - General,Passenger Railways,GPC
Statement 18/08/2016 -18/09/2016,Adults and Communities,EASTMIDLANDSTRAINS,25/08/2016,35,Casual/Essential - General,Passenger Railways,GPC
Statement 18/08/2016 -18/09/2016,Adults and Communities,EB  EUROPEAN MUSEUM AD,18/08/2016,60.71,Conference - General,Business Services-Not Elsewhere Classified,GPC
Statement 18/08/2016 -18/09/2016,Adults and Communities,EB  HOW SHOULD MUSEUMS,26/08/2016,11.11,Conference - General,Business Services-Not Elsewhere Classified,GPC
Statement 18/08/2016 -18/09/2016,Adults and Communities,EQUITA LTD,03/09/2016,189.5,Other Expenditure - General,Government Services-Not Elsewhere Classified,GPC
Statement 18/08/2016 -18/09/2016,Adults and Communities,EUROFFICE.CO.UK,07/09/2016,139.16,Stationery - General,"Stationery, Office, and School Supply Stores",GPC
Statement 18/08/2016 -18/09/2016,Adults and Communities,FACEBK 8QEVBAJ7R2,04/09/2016,20,Publicity/Marketing - General,Advertising Services,GPC
Statement 18/08/2016 -18/09/2016,Adults and Communities,FACEBK HZFLMAA8R2,08/09/2016,40.06,Publicity/Marketing - General,Advertising Services,GPC
Statement 18/08/2016 -18/09/2016,Adults and Communities,FACEBK LEDERAJ8R2,31/08/2016,14.72,Publicity/Marketing - General,Advertising Services,GPC
Statement 18/08/2016 -18/09/2016,Adults and Communities,FAST KEY SERVICES LIMI,31/08/2016,12.28,Other Equipment & Materials - General,Business Services-Not Elsewhere Classified,GPC
Statement 18/08/2016 -18/09/2016,Adults and Communities,FOREIGN EXCHANGE FEE,19/08/2016,1.67,Conference - General,Misc-Unknown,GPC
Statement 18/08/2016 -18/09/2016,Adults and Communities,FOREIGN EXCHANGE FEE,02/09/2016,0.42,IT Equipment - Licences,Misc-Unknown,GPC
Statement 18/08/2016 -18/09/2016,Adults and Communities,HALFORDS 0968,18/08/2016,18.64,Other Expenditure - General,Bicycle Shops-Sales and Service,GPC
Statement 18/08/2016 -18/09/2016,Adults and Communities,HAYMARKET SUBSCRIPTION,15/09/2016,33.33,Books - General,Miscellaneous Publishing and  Printing,GPC
Statement 18/08/2016 -18/09/2016,Adults and Communities,HILLARYS BLINDS LTD,07/09/2016,435.9,Furniture - General,"Drapery, Window Coverings, and Upholstery Stores",GPC
Statement 18/08/2016 -18/09/2016,Adults and Communities,HILLARYS BLINDS LTD,07/09/2016,435.9,Furniture - General,"Drapery, Window Coverings, and Upholstery Stores",GPC
Statement 18/08/2016 -18/09/2016,Adults and Communities,HOBBYCRAFT (INTERNET),11/09/2016,10.37,Other Equipment & Materials - General,"Artist Supply Stores, Craft Shops",GPC
Statement 18/08/2016 -18/09/2016,Adults and Communities,ICELAND,24/08/2016,40.39,Provisions - General,"Grocery Stores, Supermarkets",GPC
Statement 18/08/2016 -18/09/2016,Adults and Communities,ICELAND,02/09/2016,11.8,Provisions - General,"Grocery Stores, Supermarkets",GPC
Statement 18/08/2016 -18/09/2016,Adults and Communities,ICELAND,12/09/2016,5.5,Provisions - General,"Grocery Stores, Supermarkets",GPC
Statement 18/08/2016 -18/09/2016,Adults and Communities,ICELAND,15/09/2016,11.5,Provisions - General,"Grocery Stores, Supermarkets",GPC
Statement 18/08/2016 -18/09/2016,Adults and Communities,IMAGINE PUBLISHING,31/08/2016,34.66,Books - General,Business Services-Not Elsewhere Classified,GPC
Statement 18/08/2016 -18/09/2016,Adults and Communities,L B CAMDEN IVR,01/09/2016,0,Other Expenditure - General,Government Services-Not Elsewhere Classified,GPC
Statement 18/08/2016 -18/09/2016,Adults and Communities,LAMBETH PARKING,03/09/2016,65,Other Expenditure - General,Government Services-Not Elsewhere Classified,GPC
Statement 18/08/2016 -18/09/2016,Adults and Communities,LCC CASHIERS,31/08/2016,70,Other Expenditure - General,Government Services-Not Elsewhere Classified,GPC
Statement 18/08/2016 -18/09/2016,Adults and Communities,LEIC CITY COUNCIL,06/09/2016,13,Other Expenditure - General,Government Services-Not Elsewhere Classified,GPC
Statement 18/08/2016 -18/09/2016,Adults and Communities,LEIC CITY COUNCIL,06/09/2016,13,Other Expenditure - General,Government Services-Not Elsewhere Classified,GPC
Statement 18/08/2016 -18/09/2016,Adults and Communities,LEIC CITY COUNCIL,06/09/2016,13,Other Expenditure - General,Government Services-Not Elsewhere Classified,GPC
Statement 18/08/2016 -18/09/2016,Adults and Communities,LEIC CITY COUNCIL,08/09/2016,13,Other Expenditure - General,Government Services-Not Elsewhere Classified,GPC
Statement 18/08/2016 -18/09/2016,Adults and Communities,LEIC CITY COUNCIL,08/09/2016,13,Other Expenditure - General,Government Services-Not Elsewhere Classified,GPC
Statement 18/08/2016 -18/09/2016,Adults and Communities,LEIC CITY COUNCIL,14/09/2016,-10,Other Expenditure - General,Government Services-Not Elsewhere Classified,GPC
Statement 18/08/2016 -18/09/2016,Adults and Communities,LEICESTERSHIRE C COUNC,30/08/2016,21,Other Expenditure - General,Government Services-Not Elsewhere Classified,GPC
Statement 18/08/2016 -18/09/2016,Adults and Communities,LIDL UK,22/08/2016,28.58,Provisions - General,"Grocery Stores, Supermarkets",GPC
Statement 18/08/2016 -18/09/2016,Adults and Communities,MAX SPIELMANN LTD,13/09/2016,21.19,General Equipment - General,Photographic Studios,GPC
Statement 18/08/2016 -18/09/2016,Adults and Communities,MERCURY NEWS 63933,31/08/2016,108.1,Newspapers & Periodicals - General,"Grocery Stores, Supermarkets",GPC
Statement 18/08/2016 -18/09/2016,Adults and Communities,MONKEYOFFICE.CO.UK,15/09/2016,31.58,Stationery - General,"Stationery, Office, and School Supply Stores",GPC
Statement 18/08/2016 -18/09/2016,Adults and Communities,NCP LIMITED,31/08/2016,3.83,Public Transport -  Staff - General,Automobile Parking Lots and Garages,GPC
Statement 18/08/2016 -18/09/2016,Adults and Communities,NRS HEALTHCARE,15/09/2016,102,Other Services - General,Laboratory/Medical/Dental/Ophthalmic Hospital Equi,GPC
Statement 18/08/2016 -18/09/2016,Adults and Communities,OCADO LTD.,26/08/2016,94.67,Provisions - General,"Miscellaneous Food Stores-Convenience Stores, Mark",GPC
Statement 18/08/2016 -18/09/2016,Adults and Communities,OCADO LTD.,29/08/2016,98.28,Provisions - General,"Miscellaneous Food Stores-Convenience Stores, Mark",GPC
Statement 18/08/2016 -18/09/2016,Adults and Communities,OCADO LTD.,02/09/2016,76.46,Provisions - General,"Miscellaneous Food Stores-Convenience Stores, Mark",GPC
Statement 18/08/2016 -18/09/2016,Adults and Communities,OCADO LTD.,05/09/2016,93.1,Provisions - General,"Miscellaneous Food Stores-Convenience Stores, Mark",GPC
Statement 18/08/2016 -18/09/2016,Adults and Communities,OCADO LTD.,09/09/2016,106.12,Provisions - General,"Miscellaneous Food Stores-Convenience Stores, Mark",GPC
Statement 18/08/2016 -18/09/2016,Adults and Communities,OCADO LTD.,10/09/2016,-0.85,Provisions - General,"Miscellaneous Food Stores-Convenience Stores, Mark",GPC
Statement 18/08/2016 -18/09/2016,Adults and Communities,OCADO LTD.,12/09/2016,118.67,Provisions - General,"Miscellaneous Food Stores-Convenience Stores, Mark",GPC
Statement 18/08/2016 -18/09/2016,Adults and Communities,OCADO LTD.,16/09/2016,117,Provisions - General,"Miscellaneous Food Stores-Convenience Stores, Mark",GPC
Statement 18/08/2016 -18/09/2016,Adults and Communities,OCADO RETAIL LIMIT,19/08/2016,93.47,Provisions - General,"Miscellaneous Food Stores-Convenience Stores, Mark",GPC
Statement 18/08/2016 -18/09/2016,Adults and Communities,OCADO RETAIL LIMIT,22/08/2016,82.25,Provisions - General,"Miscellaneous Food Stores-Convenience Stores, Mark",GPC
Statement 18/08/2016 -18/09/2016,Adults and Communities,PAYPAL  AWANMARKETI,24/08/2016,9.95,Other Equipment & Materials - General,Miscellaneous House Furnishing Specialty Shops,GPC
Statement 18/08/2016 -18/09/2016,Adults and Communities,PAYPAL  BARBARAGODW,24/08/2016,5.65,Other Equipment & Materials - General,"Artist Supply Stores, Craft Shops",GPC
Statement 18/08/2016 -18/09/2016,Adults and Communities,PAYPAL  BLUEFROG,25/08/2016,8.37,Other Equipment & Materials - General,"Artist Supply Stores, Craft Shops",GPC
Statement 18/08/2016 -18/09/2016,Adults and Communities,PAYPAL  CARNEGIE,16/09/2016,140,Books - General,Miscellaneous Publishing and  Printing,GPC
Statement 18/08/2016 -18/09/2016,Adults and Communities,PAYPAL  CIFA,07/09/2016,10,Other Services - General,Charitable and Social Service Organizations,GPC
Statement 18/08/2016 -18/09/2016,Adults and Communities,PAYPAL  FANCYDRESSM,25/08/2016,7.37,Other Equipment & Materials - General,"Hobby, Toy, and Game Shops",GPC
Statement 18/08/2016 -18/09/2016,Adults and Communities,PAYPAL  HOPEROADPUB,29/08/2016,105.66,Printing - General,Miscellaneous Publishing and  Printing,GPC
Statement 18/08/2016 -18/09/2016,Adults and Communities,PAYPAL  PIMORONILTD,31/08/2016,4.17,IT Equipment - Maintenance,Professional Services-Not Elsewhere Classified,GPC
Statement 18/08/2016 -18/09/2016,Adults and Communities,PAYPAL  PIMORONILTD,31/08/2016,4.17,IT Equipment - Maintenance,Professional Services-Not Elsewhere Classified,GPC
Statement 18/08/2016 -18/09/2016,Adults and Communities,PAYPAL  PIMORONILTD,31/08/2016,4.17,IT Equipment - Maintenance,Professional Services-Not Elsewhere Classified,GPC
Statement 18/08/2016 -18/09/2016,Adults and Communities,PAYPAL  PIMORONILTD,31/08/2016,4.17,IT Equipment - Maintenance,Professional Services-Not Elsewhere Classified,GPC
Statement 18/08/2016 -18/09/2016,Adults and Communities,PAYPAL  READINGAGEN,05/09/2016,342,Other Services - General,Charitable and Social Service Organizations,GPC
Statement 18/08/2016 -18/09/2016,Adults and Communities,PAYPAL  VOW RETAIL,13/09/2016,21.16,Stationery - General,Chemicals and Allied Products Not Elsewhere Classi,GPC
Statement 18/08/2016 -18/09/2016,Adults and Communities,PAYPAL  WOW RETAIL,24/08/2016,4.16,Other Equipment & Materials - General,Book Stores,GPC
Statement 18/08/2016 -18/09/2016,Adults and Communities,PONDEN HOME,25/08/2016,60,Furniture - General,Miscellaneous House Furnishing Specialty Shops,GPC
Statement 18/08/2016 -18/09/2016,Adults and Communities,PONDEN HOME,07/09/2016,27.75,Furniture - General,Miscellaneous House Furnishing Specialty Shops,GPC
Statement 18/08/2016 -18/09/2016,Adults and Communities,PONDEN HOME,07/09/2016,60,Furniture - General,Miscellaneous House Furnishing Specialty Shops,GPC
Statement 18/08/2016 -18/09/2016,Adults and Communities,POST OFFICE COUNTER,12/09/2016,21.96,IT Equipment - General,Postage Stamps,GPC
Statement 18/08/2016 -18/09/2016,Adults and Communities,POST OFFICE COUNTER,14/09/2016,20.47,Other Equipment & Materials - General,Postage Stamps,GPC
Statement 18/08/2016 -18/09/2016,Adults and Communities,POST OFFICE COUNTER,17/08/2016,6,Postal Services - General,Postage Stamps,GPC
Statement 18/08/2016 -18/09/2016,Adults and Communities,POST OFFICE COUNTER,14/09/2016,55,Postal Services - General,Postage Stamps,GPC
Statement 18/08/2016 -18/09/2016,Adults and Communities,PP WANTED,14/09/2016,12,Other Equipment & Materials - General,Antique Shops,GPC
Statement 18/08/2016 -18/09/2016,Adults and Communities,PREMIER INN44016505,31/08/2016,115,Subsistence - General,PREMIER TRAVEL,GPC
Statement 18/08/2016 -18/09/2016,Adults and Communities,PREMIER MOBILITY (UK),22/08/2016,17.08,Other Services - General,Laboratory/Medical/Dental/Ophthalmic Hospital Equi,GPC
Statement 18/08/2016 -18/09/2016,Adults and Communities,REVOLUTION,25/08/2016,437.6,Materials - General,Miscellaneous General Merchandise Stores,GPC
Statement 18/08/2016 -18/09/2016,Adults and Communities,ROSE AND RADISH,22/08/2016,72,Other Expenditure - General,Florists,GPC
Statement 18/08/2016 -18/09/2016,Adults and Communities,ROYAL MAIL GROUP,18/08/2016,197.85,Postal Services - General,Postage Stamps,GPC
Statement 18/08/2016 -18/09/2016,Adults and Communities,RYMAN,09/09/2016,41.07,Stationery - General,"Stationery, Office, and School Supply Stores",GPC
Statement 18/08/2016 -18/09/2016,Adults and Communities,RYMAN,14/09/2016,37.08,Stationery - General,"Stationery, Office, and School Supply Stores",GPC
Statement 18/08/2016 -18/09/2016,Adults and Communities,SAFESTORE LIMITED,08/09/2016,117,Other Expenditure - General,Public Warehousing,GPC
Statement 18/08/2016 -18/09/2016,Adults and Communities,SAFETYSIGNSUP.COUK,22/08/2016,16.41,Other Services - General,"Commercial Photography, Art, Graphics",GPC
Statement 18/08/2016 -18/09/2016,Adults and Communities,SAFETYSIGNSUP.COUK,22/08/2016,3.95,Postal Services - General,"Commercial Photography, Art, Graphics",GPC
Statement 18/08/2016 -18/09/2016,Adults and Communities,SAINSBURY'S S/MKT,05/09/2016,78,Display/Conservn/Exhibitions - Exhibitions,"Grocery Stores, Supermarkets",GPC
Statement 18/08/2016 -18/09/2016,Adults and Communities,SAINSBURY'S S/MKT,17/08/2016,8.33,Provisions - General,"Grocery Stores, Supermarkets",GPC
Statement 18/08/2016 -18/09/2016,Adults and Communities,Sainsburys S/mkts,09/09/2016,12.5,Materials - General,"Grocery Stores, Supermarkets",GPC
Statement 18/08/2016 -18/09/2016,Adults and Communities,Sainsburys S/mkts,14/09/2016,7.21,Materials - General,"Grocery Stores, Supermarkets",GPC
Statement 18/08/2016 -18/09/2016,Adults and Communities,SAINSBURYS S/MKTS,09/09/2016,30.95,Provisions - General,"Grocery Stores, Supermarkets",GPC
Statement 18/08/2016 -18/09/2016,Adults and Communities,SAINSBURYS S/MKTS,11/09/2016,20.35,Provisions - General,"Grocery Stores, Supermarkets",GPC
Statement 18/08/2016 -18/09/2016,Adults and Communities,SAINSBURYS S/MKTS,11/09/2016,24.1,Provisions - General,"Grocery Stores, Supermarkets",GPC
Statement 18/08/2016 -18/09/2016,Adults and Communities,SCREWFIX,06/09/2016,13,General Equipment - General,"Building Materials, Lumber Stores",GPC
Statement 18/08/2016 -18/09/2016,Adults and Communities,SCREWFIX,13/09/2016,29.64,General Equipment - General,"Building Materials, Lumber Stores",GPC
Statement 18/08/2016 -18/09/2016,Adults and Communities,SCREWFIX,17/08/2016,33.33,Other Services - General,"Building Materials, Lumber Stores",GPC
Statement 18/08/2016 -18/09/2016,Adults and Communities,SCREWFIX,07/09/2016,66.65,Provisions - General,"Building Materials, Lumber Stores",GPC
Statement 18/08/2016 -18/09/2016,Adults and Communities,SCREWFIX,06/09/2016,4.98,R & M of Buildings - General,"Building Materials, Lumber Stores",GPC
Statement 18/08/2016 -18/09/2016,Adults and Communities,SP  SHERWOOD DIA,25/08/2016,57.6,Stationery - General,Computer Software Stores,GPC
Statement 18/08/2016 -18/09/2016,Adults and Communities,SP  SHERWOOD DIA,31/08/2016,94.95,Stationery - General,Computer Software Stores,GPC
Statement 18/08/2016 -18/09/2016,Adults and Communities,SPARES SUPPLY COMPANY,25/08/2016,10,Other Services - General,Electrical Parts and Equipment,GPC
Statement 18/08/2016 -18/09/2016,Adults and Communities,SPARES SUPPLY COMPANY,08/09/2016,25,Other Services - General,Electrical Parts and Equipment,GPC
Statement 18/08/2016 -18/09/2016,Adults and Communities,STAPLES UK,18/08/2016,2.5,Stationery - General,"Stationery, Office, and School Supply Stores",GPC
Statement 18/08/2016 -18/09/2016,Adults and Communities,STAPLES UK,07/09/2016,71.05,Stationery - General,"Stationery, Office, and School Supply Stores",GPC
Statement 18/08/2016 -18/09/2016,Adults and Communities,SUNNYSIDE GARDEN CENTRE,05/09/2016,10,Furniture - General,"Florists Supplies, Nursery Stock, and Flowers",GPC
Statement 18/08/2016 -18/09/2016,Adults and Communities,SURVEYMONKEY.COM,12/09/2016,21.67,IT Equipment - Licences,Continuity/Subscription Merchants,GPC
Statement 18/08/2016 -18/09/2016,Adults and Communities,TALKTALK BUSINESS,26/08/2016,165.02,Telephones - General,Telecommunication Service Including Local and Long,GPC
Statement 18/08/2016 -18/09/2016,Adults and Communities,TASSELLHORS,09/09/2016,94.36,Other Equipment & Materials - General,"Hobby, Toy, and Game Shops",GPC
Statement 18/08/2016 -18/09/2016,Adults and Communities,TESCO DIRECT,18/08/2016,11.5,General Equipment - General,Miscellaneous and Specialty Retail Stores,GPC
Statement 18/08/2016 -18/09/2016,Adults and Communities,TESCO STORES 2804,15/09/2016,99,Postal Services - General,"Grocery Stores, Supermarkets",GPC
Statement 18/08/2016 -18/09/2016,Adults and Communities,TESCO STORES 5182,19/08/2016,134.42,Provisions - General,"Grocery Stores, Supermarkets",GPC
Statement 18/08/2016 -18/09/2016,Adults and Communities,TESCO STORES 5182,22/08/2016,149.58,Provisions - General,"Grocery Stores, Supermarkets",GPC
Statement 18/08/2016 -18/09/2016,Adults and Communities,TESCO STORES 5182,22/08/2016,16.76,Provisions - General,"Grocery Stores, Supermarkets",GPC
Statement 18/08/2016 -18/09/2016,Adults and Communities,TESCO STORES 5182,26/08/2016,140.82,Provisions - General,"Grocery Stores, Supermarkets",GPC
Statement 18/08/2016 -18/09/2016,Adults and Communities,TESCO STORES 5182,30/08/2016,122.85,Provisions - General,"Grocery Stores, Supermarkets",GPC
Statement 18/08/2016 -18/09/2016,Adults and Communities,TESCO STORES 5182,02/09/2016,138.08,Provisions - General,"Grocery Stores, Supermarkets",GPC
Statement 18/08/2016 -18/09/2016,Adults and Communities,TESCO STORES 5182,06/09/2016,136.82,Provisions - General,"Grocery Stores, Supermarkets",GPC
Statement 18/08/2016 -18/09/2016,Adults and Communities,TESCO STORES 5182,12/09/2016,126.65,Provisions - General,"Grocery Stores, Supermarkets",GPC
Statement 18/08/2016 -18/09/2016,Adults and Communities,TESCO STORES 5182,15/09/2016,162.03,Provisions - General,"Grocery Stores, Supermarkets",GPC
Statement 18/08/2016 -18/09/2016,Adults and Communities,TESCO STORES 5495,18/08/2016,5,Provisions - General,"Grocery Stores, Supermarkets",GPC
Statement 18/08/2016 -18/09/2016,Adults and Communities,TESCO-STORES 2846,12/09/2016,4,Materials - General,"Grocery Stores, Supermarkets",GPC
Statement 18/08/2016 -18/09/2016,Adults and Communities,TEXACO EASTWOODS,24/08/2016,25.58,Other Expenditure - General,Service Stations (with or without Ancillary Servic,GPC
Statement 18/08/2016 -18/09/2016,Adults and Communities,THE POST OFFICE,24/08/2016,35.16,Postal Services - General,Postage Stamps,GPC
Statement 18/08/2016 -18/09/2016,Adults and Communities,THE RANGE,10/09/2016,38.96,Furniture - General,Department Stores,GPC
Statement 18/08/2016 -18/09/2016,Adults and Communities,THE RANGE,22/08/2016,79.49,Materials - General,Department Stores,GPC
Statement 18/08/2016 -18/09/2016,Adults and Communities,THREE-BILLPAY(CC),18/08/2016,9.99,Other Equipment & Materials - General,Telecommunication Service Including Local and Long,GPC
Statement 18/08/2016 -18/09/2016,Adults and Communities,THREE-BILLPAY(CC),14/09/2016,9.99,Other Equipment & Materials - General,Telecommunication Service Including Local and Long,GPC
Statement 18/08/2016 -18/09/2016,Adults and Communities,THREE-BILLPAY(CC),18/08/2016,19.99,Other Expenditure - General,Telecommunication Service Including Local and Long,GPC
Statement 18/08/2016 -18/09/2016,Adults and Communities,THREE-BILLPAY(CC),14/09/2016,19.99,Other Expenditure - General,Telecommunication Service Including Local and Long,GPC
Statement 18/08/2016 -18/09/2016,Adults and Communities,TL&GN RAILWAY WEB,22/08/2016,177.4,Personal Needs of Clients - General,Passenger Railways,GPC
Statement 18/08/2016 -18/09/2016,Adults and Communities,TOM TOON AND DAUGHERS,07/09/2016,135,General Equipment - General,"Equipment Rental and Leasing Services, Tool Rental",GPC
Statement 18/08/2016 -18/09/2016,Adults and Communities,TOM TOON AND DAUGHERS,13/09/2016,135,General Equipment - General,"Equipment Rental and Leasing Services, Tool Rental",GPC
Statement 18/08/2016 -18/09/2016,Adults and Communities,TP COALVILLE,15/09/2016,25.74,Aids & Adaptations - Minor Adaptations,"Building Materials, Lumber Stores",GPC
Statement 18/08/2016 -18/09/2016,Adults and Communities,TRAINLINE,09/09/2016,54.06,Casual/Essential - General,Passenger Railways,GPC
Statement 18/08/2016 -18/09/2016,Adults and Communities,TRAINLINE,01/09/2016,204.51,Conference - General,Passenger Railways,GPC
Statement 18/08/2016 -18/09/2016,Adults and Communities,TRAINLINE.COM LTD,05/09/2016,187.17,Casual/Essential - General,Passenger Railways,GPC
Statement 18/08/2016 -18/09/2016,Adults and Communities,TRAINLINE.COM LTD,05/09/2016,16.8,Casual/Essential - General,Passenger Railways,GPC
Statement 18/08/2016 -18/09/2016,Adults and Communities,TRAINLINE.COM LTD,07/09/2016,34.6,Casual/Essential - General,Passenger Railways,GPC
Statement 18/08/2016 -18/09/2016,Adults and Communities,TV LICENSING,06/09/2016,145.5,Catering Equipment - General,"Management, Consulting and Public Relations Servic",GPC
Statement 18/08/2016 -18/09/2016,Adults and Communities,TVLICENSING.CO.UK,23/08/2016,145.5,General Equipment - General,"Management, Consulting and Public Relations Servic",GPC
Statement 18/08/2016 -18/09/2016,Adults and Communities,UPT - EMT NOTTINGHAM RAI,12/09/2016,3.33,Public Transport -  Staff - General,Professional Services-Not Elsewhere Classified,GPC
Statement 18/08/2016 -18/09/2016,Adults and Communities,VALUE PRODUCTS LTD,17/08/2016,28.74,Stationery - General,Miscellaneous and Specialty Retail Stores,GPC
Statement 18/08/2016 -18/09/2016,Adults and Communities,VIRGINTRAINSEC SERVCS,14/09/2016,20.8,Public Transport -  Staff - General,Passenger Railways,GPC
Statement 18/08/2016 -18/09/2016,Adults and Communities,VIRGINTRAINSEC YRK STN,15/09/2016,11.75,Public Transport -  Staff - General,Passenger Railways,GPC
Statement 18/08/2016 -18/09/2016,Adults and Communities,W M MORRISON PLC,16/09/2016,2,Stationery - General,"Grocery Stores, Supermarkets",GPC
Statement 18/08/2016 -18/09/2016,Adults and Communities,W M MORRISONS,06/09/2016,12.91,Display/Conservn/Exhibitions - Exhibitions,"Grocery Stores, Supermarkets",GPC
Statement 18/08/2016 -18/09/2016,Adults and Communities,W M MORRISONS CAFE,31/08/2016,7.65,Provisions - General,"Eating Places, Restaurants",GPC
Statement 18/08/2016 -18/09/2016,Adults and Communities,WANDSWORTH COUNCIL INT,03/09/2016,55,Other Expenditure - General,Government Services-Not Elsewhere Classified,GPC
Statement 18/08/2016 -18/09/2016,Adults and Communities,WASH AND GLOW,06/09/2016,178.61,Conference - General,"Specialty Cleaning, Polishing, and Sanitation Prep",GPC
Statement 18/08/2016 -18/09/2016,Adults and Communities,WASH AND GLOW,06/09/2016,122.34,Conference - General,"Specialty Cleaning, Polishing, and Sanitation Prep",GPC
Statement 18/08/2016 -18/09/2016,Adults and Communities,WebBlindsUK,05/09/2016,133.65,General Equipment - General,"Drapery, Window Coverings, and Upholstery Stores",GPC
Statement 18/08/2016 -18/09/2016,Adults and Communities,WH SMITH,18/08/2016,33,Newspapers & Periodicals - General,News Dealers and Newsstands,GPC
Statement 18/08/2016 -18/09/2016,Adults and Communities,WH SMITH,18/08/2016,-16.5,Newspapers & Periodicals - General,News Dealers and Newsstands,GPC
Statement 18/08/2016 -18/09/2016,Adults and Communities,WICKES HINCKLEY,30/08/2016,8.33,General Equipment - General,"Building Materials, Lumber Stores",GPC
Statement 18/08/2016 -18/09/2016,Adults and Communities,WICKES HINCKLEY,25/08/2016,4.99,Operational Equipment - General,"Building Materials, Lumber Stores",GPC
Statement 18/08/2016 -18/09/2016,Adults and Communities,WICKES HINCKLEY,18/08/2016,16.58,Other Expenditure - General,"Building Materials, Lumber Stores",GPC
Statement 18/08/2016 -18/09/2016,Adults and Communities,WILKO RETAIL LIMIT,09/09/2016,7,Cleaning Materials - General,Household Appliance Stores,GPC
Statement 18/08/2016 -18/09/2016,Adults and Communities,WILKO RETAIL LIMIT,07/09/2016,16,Furniture - General,Household Appliance Stores,GPC
Statement 18/08/2016 -18/09/2016,Adults and Communities,WILKO RETAIL LIMIT,10/09/2016,15,General Equipment - General,Household Appliance Stores,GPC
Statement 18/08/2016 -18/09/2016,Adults and Communities,WILKO RETAIL LIMIT,24/08/2016,14,Materials - General,Household Appliance Stores,GPC
Statement 18/08/2016 -18/09/2016,Adults and Communities,WILKO RETAIL LIMIT,01/09/2016,5.47,Materials - General,Household Appliance Stores,GPC
Statement 18/08/2016 -18/09/2016,Adults and Communities,WILKO RETAIL LIMIT,13/09/2016,26.65,Materials - General,Household Appliance Stores,GPC
Statement 18/08/2016 -18/09/2016,Adults and Communities,WILKO RETAIL LIMIT,23/08/2016,9.16,Provisions - General,Household Appliance Stores,GPC
Statement 18/08/2016 -18/09/2016,Adults and Communities,WM MORRISON 054,20/08/2016,2.9,Materials - General,"Grocery Stores, Supermarkets",GPC
Statement 18/08/2016 -18/09/2016,Adults and Communities,WM MORRISON 054,25/08/2016,18.14,Materials - General,"Grocery Stores, Supermarkets",GPC
Statement 18/08/2016 -18/09/2016,Adults and Communities,WM MORRISON 054,26/08/2016,16.06,Materials - General,"Grocery Stores, Supermarkets",GPC
Statement 18/08/2016 -18/09/2016,Adults and Communities,WM MORRISON 054,27/08/2016,11.5,Materials - General,"Grocery Stores, Supermarkets",GPC
Statement 18/08/2016 -18/09/2016,Adults and Communities,WM MORRISON 054,29/08/2016,2.9,Materials - General,"Grocery Stores, Supermarkets",GPC
Statement 18/08/2016 -18/09/2016,Adults and Communities,WM MORRISON 054,01/09/2016,14.9,Materials - General,"Grocery Stores, Supermarkets",GPC
Statement 18/08/2016 -18/09/2016,Adults and Communities,WM MORRISON 054,02/09/2016,12.56,Materials - General,"Grocery Stores, Supermarkets",GPC
Statement 18/08/2016 -18/09/2016,Adults and Communities,WM MORRISON 054,03/09/2016,8.19,Materials - General,"Grocery Stores, Supermarkets",GPC
Statement 18/08/2016 -18/09/2016,Adults and Communities,WM MORRISON 054,08/09/2016,13.03,Materials - General,"Grocery Stores, Supermarkets",GPC
Statement 18/08/2016 -18/09/2016,Adults and Communities,WM MORRISON 054,10/09/2016,5.94,Materials - General,"Grocery Stores, Supermarkets",GPC
Statement 18/08/2016 -18/09/2016,Adults and Communities,WM MORRISON 054,10/09/2016,5.66,Materials - General,"Grocery Stores, Supermarkets",GPC
Statement 18/08/2016 -18/09/2016,Adults and Communities,WM MORRISON 054,14/09/2016,7.2,Materials - General,"Grocery Stores, Supermarkets",GPC
Statement 18/08/2016 -18/09/2016,Adults and Communities,WM MORRISON 054,15/09/2016,18.63,Materials - General,"Grocery Stores, Supermarkets",GPC
Statement 18/08/2016 -18/09/2016,Adults and Communities,WM MORRISON 054,16/09/2016,5.82,Materials - General,"Grocery Stores, Supermarkets",GPC
Statement 18/08/2016 -18/09/2016,Adults and Communities,WM MORRISON 054,16/09/2016,2.9,Materials - General,"Grocery Stores, Supermarkets",GPC
Statement 18/08/2016 -18/09/2016,Adults and Communities,WM MORRISON 054,18/08/2016,150.17,Provisions - General,"Grocery Stores, Supermarkets",GPC
Statement 18/08/2016 -18/09/2016,Adults and Communities,WM MORRISON 054,31/08/2016,92.53,Provisions - General,"Grocery Stores, Supermarkets",GPC
Statement 18/08/2016 -18/09/2016,Adults and Communities,WM MORRISON 054,03/09/2016,56.95,Provisions - General,"Grocery Stores, Supermarkets",GPC
Statement 18/08/2016 -18/09/2016,Adults and Communities,WM MORRISON 054,08/09/2016,88.3,Provisions - General,"Grocery Stores, Supermarkets",GPC
Statement 18/08/2016 -18/09/2016,Adults and Communities,WM MORRISON 054,11/09/2016,38.22,Provisions - General,"Grocery Stores, Supermarkets",GPC
Statement 18/08/2016 -18/09/2016,Adults and Communities,WM MORRISON 054,15/09/2016,118.1,Provisions - General,"Grocery Stores, Supermarkets",GPC
Statement 18/08/2016 -18/09/2016,Adults and Communities,WM MORRISONS,18/08/2016,131.71,Other Expenditure - General,"Grocery Stores, Supermarkets",GPC
Statement 18/08/2016 -18/09/2016,Adults and Communities,WM MORRISONS,08/09/2016,12,Provisions - General,"Grocery Stores, Supermarkets",GPC
Statement 18/08/2016 -18/09/2016,Adults and Communities,WP-WARWICKSHIRE CO,08/09/2016,10.64,Other Expenditure - General,Government Services-Not Elsewhere Classified,GPC
Statement 18/08/2016 -18/09/2016,Adults and Communities,WP-WARWICKSHIRE CO,15/09/2016,10.64,Other Expenditure - General,Government Services-Not Elsewhere Classified,GPC
Statement 18/08/2016 -18/09/2016,Adults and Communities,WWW ESPARES CO UK,16/09/2016,11.48,R & M of Buildings - General,Electrical Parts and Equipment,GPC
Statement 18/08/2016 -18/09/2016,Adults and Communities,WWW.BAKERROSS.CO.UK,31/08/2016,42.87,Materials - General,"Artist Supply Stores, Craft Shops",GPC
Statement 18/08/2016 -18/09/2016,Adults and Communities,WWW.BALSAMART.CO.UK,16/09/2016,22.95,Materials - General,"Hobby, Toy, and Game Shops",GPC
Statement 18/08/2016 -18/09/2016,Adults and Communities,WWW.COLLEGEKITSDIRECT.,07/09/2016,115.45,Materials - General,Miscellaneous and Specialty Retail Stores,GPC
Statement 18/08/2016 -18/09/2016,Adults and Communities,WWW.CONDENAST.CO.UK,18/08/2016,20,Books - General,Book Stores,GPC
Statement 18/08/2016 -18/09/2016,Adults and Communities,WWW.GEAR-UK.COM,07/09/2016,39.15,Protective Clothing & Uniforms - General,"Mens, Womens, and Childerens Uniforms and Commerci",GPC
Statement 18/08/2016 -18/09/2016,Adults and Communities,WWW.GOPLACES.CO.UK,30/08/2016,62.3,Operational Equipment - DDA,Luggage and Leather Goods Stores,GPC
Statement 18/08/2016 -18/09/2016,Adults and Communities,WWW.GOV.UK,16/09/2016,10,Other Expenditure - Public Enquiry fees,Professional Services-Not Elsewhere Classified,GPC
Statement 18/08/2016 -18/09/2016,Adults and Communities,WWW.MISCO.CO.UK,16/09/2016,79.03,IT Equipment - Software,"Computers, Computer Peripheral Equipment, Software",GPC
Statement 18/08/2016 -18/09/2016,Adults and Communities,WWW.NEOPOST.CO.UK,15/09/2016,459,Stationery - General,"Stationary, Office Supplies, Printing and Writing",GPC
Statement 18/08/2016 -18/09/2016,Adults and Communities,WWW.PARTMASTER.CO.UK,09/09/2016,31.34,General Equipment - General,Electrical Parts and Equipment,GPC
Statement 18/08/2016 -18/09/2016,Adults and Communities,WWW.PARTYRAMA.CO.UK,25/08/2016,59.36,Other Equipment & Materials - General,Miscellaneous and Specialty Retail Stores,GPC
Statement 18/08/2016 -18/09/2016,Adults and Communities,WWW.POSTURITE.CO.UK,25/08/2016,16.75,Stationery - General,Commercial Furniture,GPC
Statement 18/08/2016 -18/09/2016,Adults and Communities,WWW.ROYALMAIL.COM,19/08/2016,446.65,Postal Services - General,Postage Stamps,GPC
Statement 18/08/2016 -18/09/2016,Adults and Communities,WWW.RYMAN.CO.UK,07/09/2016,26.98,Stationery - General,"Stationery, Office, and School Supply Stores",GPC
Statement 18/08/2016 -18/09/2016,Adults and Communities,WWW.THEWORKS.CO.UK,17/08/2016,108.98,Materials - General,Discount Stores,GPC
Statement 18/08/2016 -18/09/2016,Adults and Communities,WWW.ZEN.CO.UK,30/08/2016,34.76,Telephones - General,Computer Network/Information Services,GPC
Statement 18/08/2016 -18/09/2016,C&YPS-Non Delegated,ACCOMODATION AGENC,08/09/2016,500,Other Agency & Cont Services - LCT/LAC (Not Fostered),Real Estate Agent and Managers - Rentals,GPC
Statement 18/08/2016 -18/09/2016,C&YPS-Non Delegated,ALDI,28/08/2016,61.01,Materials - General,"Grocery Stores, Supermarkets",GPC
Statement 18/08/2016 -18/09/2016,C&YPS-Non Delegated,ALDI,22/08/2016,25.34,Other Expenditure - General,"Grocery Stores, Supermarkets",GPC
Statement 18/08/2016 -18/09/2016,C&YPS-Non Delegated,ALDI,05/09/2016,24.63,Other Expenditure - General,"Grocery Stores, Supermarkets",GPC
Statement 18/08/2016 -18/09/2016,C&YPS-Non Delegated,ALDI,12/09/2016,28.79,Other Expenditure - General,"Grocery Stores, Supermarkets",GPC
Statement 18/08/2016 -18/09/2016,C&YPS-Non Delegated,ALDI,17/08/2016,35.19,Provisions - General,"Grocery Stores, Supermarkets",GPC
Statement 18/08/2016 -18/09/2016,C&YPS-Non Delegated,ALDI,18/08/2016,75.95,Provisions - General,"Grocery Stores, Supermarkets",GPC
Statement 18/08/2016 -18/09/2016,C&YPS-Non Delegated,ALDI,24/08/2016,38.54,Provisions - General,"Grocery Stores, Supermarkets",GPC
Statement 18/08/2016 -18/09/2016,C&YPS-Non Delegated,ALDI,29/08/2016,73.91,Provisions - General,"Grocery Stores, Supermarkets",GPC
Statement 18/08/2016 -18/09/2016,C&YPS-Non Delegated,ALDI,01/09/2016,69.97,Provisions - General,"Grocery Stores, Supermarkets",GPC
Statement 18/08/2016 -18/09/2016,C&YPS-Non Delegated,ALDI,02/09/2016,8.43,Provisions - General,"Grocery Stores, Supermarkets",GPC
Statement 18/08/2016 -18/09/2016,C&YPS-Non Delegated,ALDI,10/09/2016,58.28,Provisions - General,"Grocery Stores, Supermarkets",GPC
Statement 18/08/2016 -18/09/2016,C&YPS-Non Delegated,ALLPAY MOTO (CALLPAY/IVR,17/08/2016,89.42,Other Services - General,Charitable and Social Service Organizations,GPC
Statement 18/08/2016 -18/09/2016,C&YPS-Non Delegated,Amazon Prime,27/08/2016,7.99,Other Expenditure - General,Continuity/Subscription Merchants,GPC
Statement 18/08/2016 -18/09/2016,C&YPS-Non Delegated,Amazon Svcs Europe SAR,18/08/2016,4.25,Materials - General,Book Stores,GPC
Statement 18/08/2016 -18/09/2016,C&YPS-Non Delegated,Amazon Svcs Europe SAR,22/08/2016,5.99,Other Expenditure - General,Book Stores,GPC
Statement 18/08/2016 -18/09/2016,C&YPS-Non Delegated,Amazon UK Marketplace,06/09/2016,23,Cleaning Materials - General,Miscellaneous and Specialty Retail Stores,GPC
Statement 18/08/2016 -18/09/2016,C&YPS-Non Delegated,Amazon UK Marketplace,19/08/2016,19.48,IT Equipment - General,Book Stores,GPC
Statement 18/08/2016 -18/09/2016,C&YPS-Non Delegated,Amazon UK Marketplace,25/08/2016,28.96,IT Equipment - General,Miscellaneous and Specialty Retail Stores,GPC
Statement 18/08/2016 -18/09/2016,C&YPS-Non Delegated,Amazon UK Marketplace,05/09/2016,67.95,IT Equipment - General,Book Stores,GPC
Statement 18/08/2016 -18/09/2016,C&YPS-Non Delegated,Amazon UK Marketplace,05/09/2016,33.99,IT Equipment - General,Miscellaneous and Specialty Retail Stores,GPC
Statement 18/08/2016 -18/09/2016,C&YPS-Non Delegated,Amazon UK Marketplace,05/09/2016,24.39,IT Equipment - General,Miscellaneous and Specialty Retail Stores,GPC
Statement 18/08/2016 -18/09/2016,C&YPS-Non Delegated,Amazon UK Marketplace,09/09/2016,56.55,IT Equipment - General,Book Stores,GPC
Statement 18/08/2016 -18/09/2016,C&YPS-Non Delegated,Amazon UK Marketplace,16/09/2016,15.89,IT Equipment - General,Miscellaneous and Specialty Retail Stores,GPC
Statement 18/08/2016 -18/09/2016,C&YPS-Non Delegated,Amazon UK Marketplace,17/09/2016,24.99,IT Equipment - General,Miscellaneous and Specialty Retail Stores,GPC
Statement 18/08/2016 -18/09/2016,C&YPS-Non Delegated,Amazon UK Marketplace,30/08/2016,53.98,Materials - General,Miscellaneous and Specialty Retail Stores,GPC
Statement 18/08/2016 -18/09/2016,C&YPS-Non Delegated,Amazon UK Marketplace,17/08/2016,5.03,Other Equipment & Materials - General,Miscellaneous and Specialty Retail Stores,GPC
Statement 18/08/2016 -18/09/2016,C&YPS-Non Delegated,Amazon UK Marketplace,23/08/2016,3.95,Other Equipment & Materials - General,Miscellaneous and Specialty Retail Stores,GPC
Statement 18/08/2016 -18/09/2016,C&YPS-Non Delegated,Amazon UK Marketplace,23/08/2016,11.4,Other Equipment & Materials - General,Miscellaneous and Specialty Retail Stores,GPC
Statement 18/08/2016 -18/09/2016,C&YPS-Non Delegated,Amazon UK Marketplace,23/08/2016,2.38,Other Equipment & Materials - General,Miscellaneous and Specialty Retail Stores,GPC
Statement 18/08/2016 -18/09/2016,C&YPS-Non Delegated,Amazon UK Marketplace,24/08/2016,2.98,Other Equipment & Materials - General,Book Stores,GPC
Statement 18/08/2016 -18/09/2016,C&YPS-Non Delegated,Amazon UK Marketplace,24/08/2016,6.99,Other Equipment & Materials - General,Book Stores,GPC
Statement 18/08/2016 -18/09/2016,C&YPS-Non Delegated,Amazon UK Marketplace,24/08/2016,5.67,Other Equipment & Materials - General,Miscellaneous and Specialty Retail Stores,GPC
Statement 18/08/2016 -18/09/2016,C&YPS-Non Delegated,Amazon UK Marketplace,24/08/2016,2.59,Other Equipment & Materials - General,Miscellaneous and Specialty Retail Stores,GPC
Statement 18/08/2016 -18/09/2016,C&YPS-Non Delegated,Amazon UK Marketplace,24/08/2016,2.4,Other Equipment & Materials - General,Miscellaneous and Specialty Retail Stores,GPC
Statement 18/08/2016 -18/09/2016,C&YPS-Non Delegated,Amazon UK Marketplace,24/08/2016,2.76,Other Equipment & Materials - General,Miscellaneous and Specialty Retail Stores,GPC
Statement 18/08/2016 -18/09/2016,C&YPS-Non Delegated,Amazon UK Marketplace,31/08/2016,14.94,Other Equipment & Materials - General,Miscellaneous and Specialty Retail Stores,GPC
Statement 18/08/2016 -18/09/2016,C&YPS-Non Delegated,Amazon UK Marketplace,14/09/2016,84.96,Other Equipment & Materials - General,Miscellaneous and Specialty Retail Stores,GPC
Statement 18/08/2016 -18/09/2016,C&YPS-Non Delegated,Amazon UK Marketplace,22/08/2016,7.08,Other Expenditure - General,Miscellaneous and Specialty Retail Stores,GPC
Statement 18/08/2016 -18/09/2016,C&YPS-Non Delegated,Amazon UK Marketplace,18/09/2016,589.8,Other Transfer Payments - Section 23 Grants,Miscellaneous and Specialty Retail Stores,GPC
Statement 18/08/2016 -18/09/2016,C&YPS-Non Delegated,Amazon UK Marketplace,17/08/2016,25.8,Stationery - General,Book Stores,GPC
Statement 18/08/2016 -18/09/2016,C&YPS-Non Delegated,Amazon UK Marketplace,23/08/2016,7.2,Stationery - General,Miscellaneous and Specialty Retail Stores,GPC
Statement 18/08/2016 -18/09/2016,C&YPS-Non Delegated,Amazon UK Marketplace,26/08/2016,42.36,Stationery - General,Book Stores,GPC
Statement 18/08/2016 -18/09/2016,C&YPS-Non Delegated,Amazon UK Marketplace,05/09/2016,11.99,Stationery - General,Miscellaneous and Specialty Retail Stores,GPC
Statement 18/08/2016 -18/09/2016,C&YPS-Non Delegated,Amazon UK Marketplace,12/09/2016,78.94,Stationery - General,Book Stores,GPC
Statement 18/08/2016 -18/09/2016,C&YPS-Non Delegated,Amazon UK Marketplace,17/08/2016,16.55,Subsistence - General,Miscellaneous and Specialty Retail Stores,GPC
Statement 18/08/2016 -18/09/2016,C&YPS-Non Delegated,Amazon UK Marketplace,18/08/2016,49.39,Subsistence - General,Miscellaneous and Specialty Retail Stores,GPC
Statement 18/08/2016 -18/09/2016,C&YPS-Non Delegated,Amazon UK Marketplace,18/08/2016,67.35,Subsistence - General,Miscellaneous and Specialty Retail Stores,GPC
Statement 18/08/2016 -18/09/2016,C&YPS-Non Delegated,Amazon UK Marketplace,24/08/2016,12.82,Subsistence - General,Book Stores,GPC
Statement 18/08/2016 -18/09/2016,C&YPS-Non Delegated,Amazon UK Marketplace,05/09/2016,27.98,Subsistence - General,Book Stores,GPC
Statement 18/08/2016 -18/09/2016,C&YPS-Non Delegated,Amazon UK Marketplace,05/09/2016,20.34,Subsistence - General,Book Stores,GPC
Statement 18/08/2016 -18/09/2016,C&YPS-Non Delegated,Amazon UK Retail,05/09/2016,92.39,IT Equipment - General,Direct Marketers - Other,GPC
Statement 18/08/2016 -18/09/2016,C&YPS-Non Delegated,Amazon UK Retail,13/09/2016,95.69,IT Equipment - General,Direct Marketers - Other,GPC
Statement 18/08/2016 -18/09/2016,C&YPS-Non Delegated,Amazon UK Retail,30/08/2016,18.31,Other Equipment & Materials - General,Direct Marketers - Other,GPC
Statement 18/08/2016 -18/09/2016,C&YPS-Non Delegated,Amazon UK Retail,22/08/2016,18.6,Other Expenditure - General,Direct Marketers - Other,GPC
Statement 18/08/2016 -18/09/2016,C&YPS-Non Delegated,Amazon UK Retail,13/09/2016,25.94,Other Expenditure - General,Direct Marketers - Other,GPC
Statement 18/08/2016 -18/09/2016,C&YPS-Non Delegated,Amazon UK Retail,17/09/2016,39.51,Other Expenditure - General,Direct Marketers - Other,GPC
Statement 18/08/2016 -18/09/2016,C&YPS-Non Delegated,AMAZON UK RETAIL AMAZON.C,05/09/2016,20,General Equipment - General,Miscellaneous and Specialty Retail Stores,GPC
Statement 18/08/2016 -18/09/2016,C&YPS-Non Delegated,AMAZON UK RETAIL AMAZON.C,13/09/2016,9.38,Other Equipment & Materials - General,Miscellaneous and Specialty Retail Stores,GPC
Statement 18/08/2016 -18/09/2016,C&YPS-Non Delegated,AMFBOWLING.CO.UK,25/08/2016,33.84,Other Transfer Payments - Section 23 Grants,Bowling Alleys,GPC
Statement 18/08/2016 -18/09/2016,C&YPS-Non Delegated,AMFBOWLING.CO.UK,25/08/2016,20.79,Public Transport -  Staff - General,Bowling Alleys,GPC
Statement 18/08/2016 -18/09/2016,C&YPS-Non Delegated,APPLE STORE R308,03/09/2016,82.5,Personal Needs of Clients - General,"RADIO, TELEVISION, AND STEREO STORES (ELECTRONIC STORES)",GPC
Statement 18/08/2016 -18/09/2016,C&YPS-Non Delegated,ARGOS LTD,30/08/2016,31.82,General Equipment - General,Discount Stores,GPC
Statement 18/08/2016 -18/09/2016,C&YPS-Non Delegated,ARGOS LTD,01/09/2016,10.18,General Equipment - General,Discount Stores,GPC
Statement 18/08/2016 -18/09/2016,C&YPS-Non Delegated,ARGOS LTD,01/09/2016,27.77,General Equipment - General,Discount Stores,GPC
Statement 18/08/2016 -18/09/2016,C&YPS-Non Delegated,ARGOS LTD,30/08/2016,24.99,Personal Needs of Clients - General,Discount Stores,GPC
Statement 18/08/2016 -18/09/2016,C&YPS-Non Delegated,ARGOS LTD,30/08/2016,10,Telephones - General,Discount Stores,GPC
Statement 18/08/2016 -18/09/2016,C&YPS-Non Delegated,ARGOS RETAIL GROUP,01/09/2016,13.04,General Equipment - General,Discount Stores,GPC
Statement 18/08/2016 -18/09/2016,C&YPS-Non Delegated,ARGOS RETAIL GROUP,24/08/2016,123.94,Materials - General,Discount Stores,GPC
Statement 18/08/2016 -18/09/2016,C&YPS-Non Delegated,ARGOS RETAIL GROUP,09/09/2016,169.45,Materials - General,Discount Stores,GPC
Statement 18/08/2016 -18/09/2016,C&YPS-Non Delegated,ARGOS RETAIL GROUP,09/09/2016,288.93,Materials - General,Discount Stores,GPC
Statement 18/08/2016 -18/09/2016,C&YPS-Non Delegated,ARGOS RETAIL GROUP,09/09/2016,316.99,Materials - General,Discount Stores,GPC
Statement 18/08/2016 -18/09/2016,C&YPS-Non Delegated,ARGOS RETAIL GROUP,09/09/2016,224.94,Materials - General,Discount Stores,GPC
Statement 18/08/2016 -18/09/2016,C&YPS-Non Delegated,ARGOS RETAIL GROUP,30/08/2016,13.94,Other Equipment & Materials - General,Discount Stores,GPC
Statement 18/08/2016 -18/09/2016,C&YPS-Non Delegated,ARGOS RETAIL GROUP,13/09/2016,68.9,Other Equipment & Materials - General,Discount Stores,GPC
Statement 18/08/2016 -18/09/2016,C&YPS-Non Delegated,ARGOS RETAIL GROUP,16/09/2016,176.94,Other Transfer Payments - Section 23 Grants,Discount Stores,GPC
Statement 18/08/2016 -18/09/2016,C&YPS-Non Delegated,ARRIVA MID TRAVEL,24/08/2016,367,Casual/Essential - General,"Bus Lines, Charters, Tour Buses",GPC
Statement 18/08/2016 -18/09/2016,C&YPS-Non Delegated,ASDA 4387,24/08/2016,12,Provisions - General,"Grocery Stores, Supermarkets",GPC
Statement 18/08/2016 -18/09/2016,C&YPS-Non Delegated,ASDA SUPERSTORE,30/08/2016,14.75,General Equipment - General,"Grocery Stores, Supermarkets",GPC
Statement 18/08/2016 -18/09/2016,C&YPS-Non Delegated,ASDA SUPERSTORE,14/09/2016,10,General Equipment - General,"Grocery Stores, Supermarkets",GPC
Statement 18/08/2016 -18/09/2016,C&YPS-Non Delegated,ASDA SUPERSTORE,17/08/2016,95.16,Materials - General,"Grocery Stores, Supermarkets",GPC
Statement 18/08/2016 -18/09/2016,C&YPS-Non Delegated,ASDA SUPERSTORE,27/08/2016,7.81,Personal Needs of Clients - General,"Grocery Stores, Supermarkets",GPC
Statement 18/08/2016 -18/09/2016,C&YPS-Non Delegated,ASDA SUPERSTORE,20/08/2016,80.77,Provisions - General,"Grocery Stores, Supermarkets",GPC
Statement 18/08/2016 -18/09/2016,C&YPS-Non Delegated,ASDA SUPERSTORE,23/08/2016,64.5,Provisions - General,"Grocery Stores, Supermarkets",GPC
Statement 18/08/2016 -18/09/2016,C&YPS-Non Delegated,ASDA SUPERSTORE,06/09/2016,134.86,Provisions - General,"Grocery Stores, Supermarkets",GPC
Statement 18/08/2016 -18/09/2016,C&YPS-Non Delegated,ASDA SUPERSTORE,14/09/2016,119.86,Provisions - General,"Grocery Stores, Supermarkets",GPC
Statement 18/08/2016 -18/09/2016,C&YPS-Non Delegated,B & Q 1052,17/08/2016,6.32,Other Equipment & Materials - General,"Building Materials, Lumber Stores",GPC
Statement 18/08/2016 -18/09/2016,C&YPS-Non Delegated,B & Q 1052,16/09/2016,50,Provisions - General,"Building Materials, Lumber Stores",GPC
Statement 18/08/2016 -18/09/2016,C&YPS-Non Delegated,B&M RETAIL,29/08/2016,110.11,Provisions - General,Discount Stores,GPC
Statement 18/08/2016 -18/09/2016,C&YPS-Non Delegated,BBCN LEICESTER WIGSTON,02/09/2016,198.81,Other Transfer Payments - Section 23 Grants,Child Care Services,GPC
Statement 18/08/2016 -18/09/2016,C&YPS-Non Delegated,BOOTS 0038,29/08/2016,30,Other Expenditure - Assist/Conts to Schemes,"Drug Stores, Pharmacies",GPC
Statement 18/08/2016 -18/09/2016,C&YPS-Non Delegated,BP CHARNWOOD S/STN,05/09/2016,5.77,R&M of Vehicles-Non Contract - General,Service Stations (with or without Ancillary Servic,GPC
Statement 18/08/2016 -18/09/2016,C&YPS-Non Delegated,BRITISH PSYCHO SOC,06/09/2016,131.76,Training Expenses - General,"Medical Services, Health Practitioners-Not Elsewhe",GPC
Statement 18/08/2016 -18/09/2016,C&YPS-Non Delegated,BT BILL PAYMENT 1,07/09/2016,108.7,IT Equipment - Rental,Telecommunication Equipment Including Telephone Sa,GPC
Statement 18/08/2016 -18/09/2016,C&YPS-Non Delegated,BT BILL PAYMENT 1,18/08/2016,57.78,R & M of Buildings - General,Telecommunication Equipment Including Telephone Sa,GPC
Statement 18/08/2016 -18/09/2016,C&YPS-Non Delegated,BT BILL PAYMENT 1,18/08/2016,85.89,Telephones - General,Telecommunication Equipment Including Telephone Sa,GPC
Statement 18/08/2016 -18/09/2016,C&YPS-Non Delegated,BT BILL PAYMENT 1,18/08/2016,55.89,Telephones - General,Telecommunication Equipment Including Telephone Sa,GPC
Statement 18/08/2016 -18/09/2016,C&YPS-Non Delegated,BT BILL PAYMENT 1,07/09/2016,66.9,Telephones - General,Telecommunication Equipment Including Telephone Sa,GPC
Statement 18/08/2016 -18/09/2016,C&YPS-Non Delegated,BT BILL PAYMENT 2,30/08/2016,83.7,IT Equipment - Rental,Telecommunication Equipment Including Telephone Sa,GPC
Statement 18/08/2016 -18/09/2016,C&YPS-Non Delegated,BT BILL PAYMENT 2,18/08/2016,55.89,Telephones - General,Telecommunication Equipment Including Telephone Sa,GPC
Statement 18/08/2016 -18/09/2016,C&YPS-Non Delegated,BT BILL PAYMENT 2,18/08/2016,85.89,Telephones - General,Telecommunication Equipment Including Telephone Sa,GPC
Statement 18/08/2016 -18/09/2016,C&YPS-Non Delegated,BT BILL PAYMENT 2,18/08/2016,27.96,Telephones - General,Telecommunication Equipment Including Telephone Sa,GPC
Statement 18/08/2016 -18/09/2016,C&YPS-Non Delegated,BT BILL PAYMENT 2,30/08/2016,84.9,Telephones - General,Telecommunication Equipment Including Telephone Sa,GPC
Statement 18/08/2016 -18/09/2016,C&YPS-Non Delegated,BT BILL PAYMENT 2,31/08/2016,55.89,Telephones - General,Telecommunication Equipment Including Telephone Sa,GPC
Statement 18/08/2016 -18/09/2016,C&YPS-Non Delegated,BT BILL PAYMENT 2,12/09/2016,50.2,Telephones - General,Telecommunication Equipment Including Telephone Sa,GPC
Statement 18/08/2016 -18/09/2016,C&YPS-Non Delegated,BT BILL PAYMENT 2,12/09/2016,66.9,Telephones - General,Telecommunication Equipment Including Telephone Sa,GPC
Statement 18/08/2016 -18/09/2016,C&YPS-Non Delegated,BT PAY BY PHONE,18/08/2016,47.91,R & M of Buildings - General,Telecommunication Service Including Local and Long,GPC
Statement 18/08/2016 -18/09/2016,C&YPS-Non Delegated,CENTRAL CO-OP RETA,12/09/2016,5,Other Equipment & Materials - General,Department Stores,GPC
Statement 18/08/2016 -18/09/2016,C&YPS-Non Delegated,CENTRAL ENG COOP,13/09/2016,22,Client/Volunteers - General,Department Stores,GPC
Statement 18/08/2016 -18/09/2016,C&YPS-Non Delegated,CENTRAL ENG COOP,13/09/2016,-22,Client/Volunteers - General,Department Stores,GPC
Statement 18/08/2016 -18/09/2016,C&YPS-Non Delegated,CENTRAL ENG COOP,13/09/2016,6.33,General Equipment - General,Department Stores,GPC
Statement 18/08/2016 -18/09/2016,C&YPS-Non Delegated,CENTRAL ENG COOP,10/09/2016,6.3,Materials - General,Department Stores,GPC
Statement 18/08/2016 -18/09/2016,C&YPS-Non Delegated,CENTRAL ENG COOP,08/09/2016,9.96,Other Equipment & Materials - General,Department Stores,GPC
Statement 18/08/2016 -18/09/2016,C&YPS-Non Delegated,CINEWORLD,23/08/2016,15,Public Transport -  Staff - General,"Theatrical Products (Except Motion Pictures), Tick",GPC
Statement 18/08/2016 -18/09/2016,C&YPS-Non Delegated,CURRYS,23/08/2016,100,Materials - General,"RADIO, TELEVISION, AND STEREO STORES (ELECTRONIC STORES)",GPC
Statement 18/08/2016 -18/09/2016,C&YPS-Non Delegated,CURRYS,23/08/2016,443.97,Materials - General,"RADIO, TELEVISION, AND STEREO STORES (ELECTRONIC STORES)",GPC
Statement 18/08/2016 -18/09/2016,C&YPS-Non Delegated,CURRYS ONLINE,17/08/2016,390,Materials - General,"RADIO, TELEVISION, AND STEREO STORES (ELECTRONIC STORES)",GPC
Statement 18/08/2016 -18/09/2016,C&YPS-Non Delegated,CURRYS ONLINE,06/09/2016,254.99,Other Transfer Payments - Leaving Care Grants,"RADIO, TELEVISION, AND STEREO STORES (ELECTRONIC STORES)",GPC
Statement 18/08/2016 -18/09/2016,C&YPS-Non Delegated,DUNELM LTD,16/09/2016,38.97,Materials - General,"Drapery, Window Coverings, and Upholstery Stores",GPC
Statement 18/08/2016 -18/09/2016,C&YPS-Non Delegated,DUNELM LTD,26/08/2016,41.35,Provisions - General,"Drapery, Window Coverings, and Upholstery Stores",GPC
Statement 18/08/2016 -18/09/2016,C&YPS-Non Delegated,DUNELM LTD,30/08/2016,16.98,Provisions - General,"Drapery, Window Coverings, and Upholstery Stores",GPC
Statement 18/08/2016 -18/09/2016,C&YPS-Non Delegated,EAST MIDLANDS MARKET HAR,08/09/2016,11.5,Casual/Essential - General,Automobile Parking Lots and Garages,GPC
Statement 18/08/2016 -18/09/2016,C&YPS-Non Delegated,EAST MIDLANDS TRAI,08/09/2016,125.5,Casual/Essential - General,Passenger Railways,GPC
Statement 18/08/2016 -18/09/2016,C&YPS-Non Delegated,EAST MIDLANDS TRAI,01/09/2016,10.55,Client/Volunteers - General,Passenger Railways,GPC
Statement 18/08/2016 -18/09/2016,C&YPS-Non Delegated,EAST MIDLANDS TRAI,01/09/2016,-10.55,Client/Volunteers - General,Passenger Railways,GPC
Statement 18/08/2016 -18/09/2016,C&YPS-Non Delegated,EASTMIDLANDSTRAINS,12/09/2016,90.5,Casual/Essential - General,Passenger Railways,GPC
Statement 18/08/2016 -18/09/2016,C&YPS-Non Delegated,EB  HARMFUL SEXUAL BEH,05/09/2016,273.92,Other Expenditure - General,Business Services-Not Elsewhere Classified,GPC
Statement 18/08/2016 -18/09/2016,C&YPS-Non Delegated,ESPO,18/08/2016,33.86,Stationery - General,Government Services-Not Elsewhere Classified,GPC
Statement 18/08/2016 -18/09/2016,C&YPS-Non Delegated,EuroFlorist,15/09/2016,19.98,Materials - General,Florists,GPC
Statement 18/08/2016 -18/09/2016,C&YPS-Non Delegated,FAST KEY SERVICES LIMI,16/09/2016,72.9,Other Expenditure - General,Business Services-Not Elsewhere Classified,GPC
Statement 18/08/2016 -18/09/2016,C&YPS-Non Delegated,FOREIGN EXCHANGE FEE,13/09/2016,8.68,Stationery - General,Misc-Unknown,GPC
Statement 18/08/2016 -18/09/2016,C&YPS-Non Delegated,GL-ASSESMENT.CO.UK,13/09/2016,61.3,General Equipment - General,Book Stores,GPC
Statement 18/08/2016 -18/09/2016,C&YPS-Non Delegated,GREEN MOTION LEICESTER,17/08/2016,-400,Casual/Essential - General,Automobile Rental Agency,GPC
Statement 18/08/2016 -18/09/2016,C&YPS-Non Delegated,GREEN MOTION LEICESTER,09/09/2016,349.99,Public Transport -  Staff - General,Automobile Rental Agency,GPC
Statement 18/08/2016 -18/09/2016,C&YPS-Non Delegated,GREEN MOTION LEICESTER,09/09/2016,400,Public Transport -  Staff - General,Automobile Rental Agency,GPC
Statement 18/08/2016 -18/09/2016,C&YPS-Non Delegated,GRO HM PASSPORT OFFICE,07/09/2016,9.25,Other Equipment & Materials - General,Government Services-Not Elsewhere Classified,GPC
Statement 18/08/2016 -18/09/2016,C&YPS-Non Delegated,GRO HM PASSPORT OFFICE,02/09/2016,9.25,Other Expenditure - General,Government Services-Not Elsewhere Classified,GPC
Statement 18/08/2016 -18/09/2016,C&YPS-Non Delegated,GRO HM PASSPORT OFFICE,07/09/2016,29.85,Other Transfer Payments - Section 23 Grants,Government Services-Not Elsewhere Classified,GPC
Statement 18/08/2016 -18/09/2016,C&YPS-Non Delegated,HALFORDS 0560,17/08/2016,6,Other Equipment & Materials - General,Bicycle Shops-Sales and Service,GPC
Statement 18/08/2016 -18/09/2016,C&YPS-Non Delegated,HMCOURTS-SERVICE.G,14/09/2016,120,Other Expenditure - General,Fines,GPC
Statement 18/08/2016 -18/09/2016,C&YPS-Non Delegated,HMCOURTS-SERVICE.G,15/09/2016,20,Other Transfer Payments - Sector 17- Other,Fines,GPC
Statement 18/08/2016 -18/09/2016,C&YPS-Non Delegated,HOME BARGAINS COALVILL,23/08/2016,18.99,Other Equipment & Materials - General,Hardware Stores,GPC
Statement 18/08/2016 -18/09/2016,C&YPS-Non Delegated,HOMEBASE LTD,10/09/2016,4.74,General Equipment - General,"Building Materials, Lumber Stores",GPC
Statement 18/08/2016 -18/09/2016,C&YPS-Non Delegated,HUNGRYHOUSE LTD,09/09/2016,17.9,Subsistence - General,"Eating Places, Restaurants",GPC
Statement 18/08/2016 -18/09/2016,C&YPS-Non Delegated,IMMIGRATION ADVICE SER,05/09/2016,150,Consultants & Specialists - General,"Legal Services, Attorneys",GPC
Statement 18/08/2016 -18/09/2016,C&YPS-Non Delegated,INTER CONTINE,19/08/2016,209,Training Expenses - General,Intercontinental Hotels,GPC
Statement 18/08/2016 -18/09/2016,C&YPS-Non Delegated,IZ  JESSICA KINGSLEY (PUB,16/09/2016,17,Books - General,Miscellaneous and Specialty Retail Stores,GPC
Statement 18/08/2016 -18/09/2016,C&YPS-Non Delegated,IZ  THE MUSCLE MAC,30/08/2016,41.25,Subscriptions - General,RECREATION SERVICES--NOT ELSEWHERE CLASSIFIED,GPC
Statement 18/08/2016 -18/09/2016,C&YPS-Non Delegated,J D SPORTS 593,31/08/2016,62.55,Personal Needs of Clients - General,Sporting Goods Stores,GPC
Statement 18/08/2016 -18/09/2016,C&YPS-Non Delegated,J W PEPPER AND SON INC,12/09/2016,315.78,Stationery - General,"Music Stores-Musical Instruments, Pianos, Sheet Mu",GPC
Statement 18/08/2016 -18/09/2016,C&YPS-Non Delegated,JD SPORTS INTERNET,13/09/2016,-23,Personal Needs of Clients - General,Sporting Goods Stores,GPC
Statement 18/08/2016 -18/09/2016,C&YPS-Non Delegated,JD SPORTS INTERNET,14/09/2016,75,Personal Needs of Clients - General,Sporting Goods Stores,GPC
Statement 18/08/2016 -18/09/2016,C&YPS-Non Delegated,JOHN SKILLEN MARTIAL ARTS,25/08/2016,24,Subscriptions - General,"Commercial Sports, Professional Sports Clubs, Athl",GPC
Statement 18/08/2016 -18/09/2016,C&YPS-Non Delegated,JOHN SKILLEN MARTIAL ARTS,08/09/2016,12,Subscriptions - General,"Commercial Sports, Professional Sports Clubs, Athl",GPC
Statement 18/08/2016 -18/09/2016,C&YPS-Non Delegated,JOHN SKILLEN MARTIAL ARTS,15/09/2016,36.99,Subscriptions - General,"Commercial Sports, Professional Sports Clubs, Athl",GPC
Statement 18/08/2016 -18/09/2016,C&YPS-Non Delegated,LEIC CITY COUNCIL,19/08/2016,13,Other Expenditure - General,Government Services-Not Elsewhere Classified,GPC
Statement 18/08/2016 -18/09/2016,C&YPS-Non Delegated,LEIC CITY COUNCIL,09/09/2016,13,Other Expenditure - General,Government Services-Not Elsewhere Classified,GPC
Statement 18/08/2016 -18/09/2016,C&YPS-Non Delegated,LEIC CITY COUNCIL,23/08/2016,23,Other Transfer Payments - Section 23 Grants,Government Services-Not Elsewhere Classified,GPC
Statement 18/08/2016 -18/09/2016,C&YPS-Non Delegated,LEIC CITY COUNCIL,23/08/2016,23,Other Transfer Payments - Section 23 Grants,Government Services-Not Elsewhere Classified,GPC
Statement 18/08/2016 -18/09/2016,C&YPS-Non Delegated,LEIC CITY COUNCIL,23/08/2016,23,Other Transfer Payments - Section 23 Grants,Government Services-Not Elsewhere Classified,GPC
Statement 18/08/2016 -18/09/2016,C&YPS-Non Delegated,LEIC CITY COUNCIL,30/08/2016,23,Other Transfer Payments - Section 23 Grants,Government Services-Not Elsewhere Classified,GPC
Statement 18/08/2016 -18/09/2016,C&YPS-Non Delegated,LEIC CITY COUNCIL,30/08/2016,13,Other Transfer Payments - Section 23 Grants,Government Services-Not Elsewhere Classified,GPC
Statement 18/08/2016 -18/09/2016,C&YPS-Non Delegated,LEIC CITY COUNCIL,07/09/2016,-10,Other Transfer Payments - Section 23 Grants,Government Services-Not Elsewhere Classified,GPC
Statement 18/08/2016 -18/09/2016,C&YPS-Non Delegated,LEIC CITY COUNCIL,08/09/2016,13,Other Transfer Payments - Section 23 Grants,Government Services-Not Elsewhere Classified,GPC
Statement 18/08/2016 -18/09/2016,C&YPS-Non Delegated,LEICESTERSHIRE C COUNC,19/08/2016,11,Other Expenditure - General,Government Services-Not Elsewhere Classified,GPC
Statement 18/08/2016 -18/09/2016,C&YPS-Non Delegated,LEICESTERSHIRE C COUNC,25/08/2016,-11,Other Expenditure - General,Government Services-Not Elsewhere Classified,GPC
Statement 18/08/2016 -18/09/2016,C&YPS-Non Delegated,LEICESTERSHIRE C COUNC,24/08/2016,35,Training Expenses - General,Government Services-Not Elsewhere Classified,GPC
Statement 18/08/2016 -18/09/2016,C&YPS-Non Delegated,LIDL UK,02/09/2016,12.99,Provisions - General,"Grocery Stores, Supermarkets",GPC
Statement 18/08/2016 -18/09/2016,C&YPS-Non Delegated,LOTHIAN BUSES LTD,15/09/2016,7.5,Casual/Essential - General,"Bus Lines, Charters, Tour Buses",GPC
Statement 18/08/2016 -18/09/2016,C&YPS-Non Delegated,MAX SPIELMANN LTD,17/08/2016,9.99,Other Equipment & Materials - General,Photographic Studios,GPC
Statement 18/08/2016 -18/09/2016,C&YPS-Non Delegated,MCDONALDS,08/09/2016,3.07,Other Expenditure - General,Fast-Food Restaurants (Quick Payment Service Pilot,GPC
Statement 18/08/2016 -18/09/2016,C&YPS-Non Delegated,MCDONALDS,31/08/2016,13.39,Provisions - General,"Eating Places, Restaurants",GPC
Statement 18/08/2016 -18/09/2016,C&YPS-Non Delegated,MCDONALDS,17/08/2016,2.19,Subsistence - General,"Eating Places, Restaurants",GPC
Statement 18/08/2016 -18/09/2016,C&YPS-Non Delegated,MCDONALDS,23/08/2016,1.99,Subsistence - General,"Eating Places, Restaurants",GPC
Statement 18/08/2016 -18/09/2016,C&YPS-Non Delegated,MCDONALDS,23/08/2016,4.79,Subsistence - General,"Eating Places, Restaurants",GPC
Statement 18/08/2016 -18/09/2016,C&YPS-Non Delegated,MCDONALDS,25/08/2016,2.98,Subsistence - General,Fast-Food Restaurants (Quick Payment Service Pilot,GPC
Statement 18/08/2016 -18/09/2016,C&YPS-Non Delegated,MCDONALDS,02/09/2016,5.79,Subsistence - General,"Eating Places, Restaurants",GPC
Statement 18/08/2016 -18/09/2016,C&YPS-Non Delegated,MCDONALDS,02/09/2016,1.59,Subsistence - General,Fast-Food Restaurants (Quick Payment Service Pilot,GPC
Statement 18/08/2016 -18/09/2016,C&YPS-Non Delegated,MCDONALDS,08/09/2016,1.39,Subsistence - General,"Eating Places, Restaurants",GPC
Statement 18/08/2016 -18/09/2016,C&YPS-Non Delegated,MCDONALDS,12/09/2016,4.99,Subsistence - General,"Eating Places, Restaurants",GPC
Statement 18/08/2016 -18/09/2016,C&YPS-Non Delegated,MCDONALDS,16/09/2016,1.59,Subsistence - General,Fast-Food Restaurants (Quick Payment Service Pilot,GPC
Statement 18/08/2016 -18/09/2016,C&YPS-Non Delegated,MUFFIN BREAK,01/09/2016,10.9,Subsistence - General,"Drinking Places (Alcoholic Beverages)-Bars, Tavern",GPC
Statement 18/08/2016 -18/09/2016,C&YPS-Non Delegated,NATIONALEXPRESS.CO,24/08/2016,64.1,Other Transfer Payments - Section 23 Grants,"Bus Lines, Charters, Tour Buses",GPC
Statement 18/08/2016 -18/09/2016,C&YPS-Non Delegated,NCP LIMITED,25/08/2016,6,Casual/Essential - General,Automobile Parking Lots and Garages,GPC
Statement 18/08/2016 -18/09/2016,C&YPS-Non Delegated,NOCHEX-SENSORY EDUCATI,25/08/2016,82.96,Stationery - General,Miscellaneous General Merchandise Stores,GPC
Statement 18/08/2016 -18/09/2016,C&YPS-Non Delegated,PAPERSTONE,22/08/2016,17.53,Stationery - General,"Stationery, Office, and School Supply Stores",GPC
Statement 18/08/2016 -18/09/2016,C&YPS-Non Delegated,PARKING LEIC CC,24/08/2016,6,Other Expenditure - General,Government Services-Not Elsewhere Classified,GPC
Statement 18/08/2016 -18/09/2016,C&YPS-Non Delegated,PAYPAL  VALIDATE UK,05/09/2016,26,Other Expenditure - General,Government Services-Not Elsewhere Classified,GPC
Statement 18/08/2016 -18/09/2016,C&YPS-Non Delegated,POST OFFICE COUNTER,18/08/2016,6.45,Other Equipment & Materials - General,Postage Stamps,GPC
Statement 18/08/2016 -18/09/2016,C&YPS-Non Delegated,POST OFFICE COUNTER,31/08/2016,43.3,Other Equipment & Materials - General,Postage Stamps,GPC
Statement 18/08/2016 -18/09/2016,C&YPS-Non Delegated,POST OFFICE COUNTER,15/09/2016,60,Other Equipment & Materials - General,Postage Stamps,GPC
Statement 18/08/2016 -18/09/2016,C&YPS-Non Delegated,POST OFFICE COUNTER,07/09/2016,110,Postal Services - General,Postage Stamps,GPC
Statement 18/08/2016 -18/09/2016,C&YPS-Non Delegated,POST OFFICE COUNTER,08/09/2016,6.45,Postal Services - General,Postage Stamps,GPC
Statement 18/08/2016 -18/09/2016,C&YPS-Non Delegated,POST OFFICE SHOP,05/09/2016,58.29,Postal Services - General,Postage Stamps,GPC
Statement 18/08/2016 -18/09/2016,C&YPS-Non Delegated,POTTERS CARPETS,18/08/2016,116.73,Materials - General,Floor Coverings   Stores,GPC
Statement 18/08/2016 -18/09/2016,C&YPS-Non Delegated,POUNDLAND LTD 1142,23/08/2016,3.34,Other Equipment & Materials - General,Discount Stores,GPC
Statement 18/08/2016 -18/09/2016,C&YPS-Non Delegated,POUNDLAND LTD 1219,09/09/2016,30.4,Materials - General,Discount Stores,GPC
Statement 18/08/2016 -18/09/2016,C&YPS-Non Delegated,POUNDSTRETCHER 175,02/09/2016,14.8,Personal Needs of Clients - General,"Drapery, Window Coverings, and Upholstery Stores",GPC
Statement 18/08/2016 -18/09/2016,C&YPS-Non Delegated,POUNDWORLD RETAIL,02/09/2016,10.04,Stationery - General,Discount Stores,GPC
Statement 18/08/2016 -18/09/2016,C&YPS-Non Delegated,PP DAIRY2DOOR,18/08/2016,26.27,Provisions - General,"Miscellaneous Food Stores-Convenience Stores, Mark",GPC
Statement 18/08/2016 -18/09/2016,C&YPS-Non Delegated,PREMIER INN44011950,06/09/2016,584,Other Equipment & Materials - General,PREMIER TRAVEL,GPC
Statement 18/08/2016 -18/09/2016,C&YPS-Non Delegated,PREMIER INN44015515,12/09/2016,370,Other Expenditure - General,PREMIER TRAVEL,GPC
Statement 18/08/2016 -18/09/2016,C&YPS-Non Delegated,PREMIERMEETINGS.CO.UK,31/08/2016,319.2,Other Equipment & Materials - General,Business Services-Not Elsewhere Classified,GPC
Statement 18/08/2016 -18/09/2016,C&YPS-Non Delegated,PRIMARK 477,31/08/2016,40,Personal Needs of Clients - General,Family Clothing Stores,GPC
Statement 18/08/2016 -18/09/2016,C&YPS-Non Delegated,QUEENS UNIVERSITY BELF,09/09/2016,150,Course Fees - General,"Colleges, Universities, Professional Schools, and",GPC
Statement 18/08/2016 -18/09/2016,C&YPS-Non Delegated,QUEENS UNIVERSITY BELF,09/09/2016,150,Course Fees - General,"Colleges, Universities, Professional Schools, and",GPC
Statement 18/08/2016 -18/09/2016,C&YPS-Non Delegated,QUEENS UNIVERSITY BELF,09/09/2016,150,Course Fees - General,"Colleges, Universities, Professional Schools, and",GPC
Statement 18/08/2016 -18/09/2016,C&YPS-Non Delegated,RIVER ISLAND 253,31/08/2016,35.05,Personal Needs of Clients - General,Men's And Women's Clothing Stores,GPC
Statement 18/08/2016 -18/09/2016,C&YPS-Non Delegated,ROOSTERS PIRI PIRI,08/09/2016,16.96,Subsistence - General,Fast-Food Restaurants (Quick Payment Service Pilot,GPC
Statement 18/08/2016 -18/09/2016,C&YPS-Non Delegated,ROYAL MAIL,01/09/2016,110,Postal Services - General,Postage Stamps,GPC
Statement 18/08/2016 -18/09/2016,C&YPS-Non Delegated,RYMAN,25/08/2016,10.82,Stationery - General,"Stationery, Office, and School Supply Stores",GPC
Statement 18/08/2016 -18/09/2016,C&YPS-Non Delegated,RYMAN,25/08/2016,2.07,Stationery - General,"Stationery, Office, and School Supply Stores",GPC
Statement 18/08/2016 -18/09/2016,C&YPS-Non Delegated,RYMAN,14/09/2016,15.43,Stationery - General,"Stationery, Office, and School Supply Stores",GPC
Statement 18/08/2016 -18/09/2016,C&YPS-Non Delegated,SAINSBURY'S S/MKT,13/09/2016,7.05,Provisions - General,"Grocery Stores, Supermarkets",GPC
Statement 18/08/2016 -18/09/2016,C&YPS-Non Delegated,SAINSBURY'S S/MKT,14/09/2016,6.8,Provisions - General,"Grocery Stores, Supermarkets",GPC
Statement 18/08/2016 -18/09/2016,C&YPS-Non Delegated,SAINSBURYS S/MKTS,24/08/2016,2.5,General Equipment - General,"Grocery Stores, Supermarkets",GPC
Statement 18/08/2016 -18/09/2016,C&YPS-Non Delegated,SAINSBURYS S/MKTS,26/08/2016,15.06,General Equipment - General,"Grocery Stores, Supermarkets",GPC
Statement 18/08/2016 -18/09/2016,C&YPS-Non Delegated,SAINSBURYS S/MKTS,08/09/2016,30,Materials - General,"Grocery Stores, Supermarkets",GPC
Statement 18/08/2016 -18/09/2016,C&YPS-Non Delegated,SAINSBURYS S/MKTS,10/09/2016,48.1,Materials - General,"Grocery Stores, Supermarkets",GPC
Statement 18/08/2016 -18/09/2016,C&YPS-Non Delegated,SAINSBURYS S/MKTS,17/09/2016,46,Materials - General,"Grocery Stores, Supermarkets",GPC
Statement 18/08/2016 -18/09/2016,C&YPS-Non Delegated,SAINSBURYS S/MKTS,18/08/2016,35.27,Other Equipment & Materials - General,"Grocery Stores, Supermarkets",GPC
Statement 18/08/2016 -18/09/2016,C&YPS-Non Delegated,SAINSBURYS S/MKTS,22/08/2016,43.76,Provisions - General,"Grocery Stores, Supermarkets",GPC
Statement 18/08/2016 -18/09/2016,C&YPS-Non Delegated,SAVERS HEALTH & BEAUTY,13/09/2016,17.56,Personal Needs of Clients - General,"Drug Stores, Pharmacies",GPC
Statement 18/08/2016 -18/09/2016,C&YPS-Non Delegated,SCHOOL OF EDUCATION,09/09/2016,150,Course Fees - General,"Colleges, Universities, Professional Schools, and",GPC
Statement 18/08/2016 -18/09/2016,C&YPS-Non Delegated,SMYTHS TOYS,12/09/2016,8.33,General Equipment - General,"Hobby, Toy, and Game Shops",GPC
Statement 18/08/2016 -18/09/2016,C&YPS-Non Delegated,SPORTSDIRECT 65,05/09/2016,73.97,Materials - General,Sporting Goods Stores,GPC
Statement 18/08/2016 -18/09/2016,C&YPS-Non Delegated,STAPLES UK,05/09/2016,14.41,Other Expenditure - General,"Stationery, Office, and School Supply Stores",GPC
Statement 18/08/2016 -18/09/2016,C&YPS-Non Delegated,STAPLES UK,30/08/2016,9.99,Stationery - General,"Stationery, Office, and School Supply Stores",GPC
Statement 18/08/2016 -18/09/2016,C&YPS-Non Delegated,STAPLES UK,31/08/2016,36.24,Stationery - General,"Stationery, Office, and School Supply Stores",GPC
Statement 18/08/2016 -18/09/2016,C&YPS-Non Delegated,STAUNTON STABLES TEA,13/09/2016,11.75,Other Expenditure - General,"Eating Places, Restaurants",GPC
Statement 18/08/2016 -18/09/2016,C&YPS-Non Delegated,STRAW & PEARCE,18/08/2016,120,Other Expenditure - General,"Legal Services, Attorneys",GPC
Statement 18/08/2016 -18/09/2016,C&YPS-Non Delegated,SURVEYMONKEY.COM,03/09/2016,299,Other Expenditure - General,Continuity/Subscription Merchants,GPC
Statement 18/08/2016 -18/09/2016,C&YPS-Non Delegated,SYSTOM PHYSIO&OSTEA CL,22/08/2016,40,Subscriptions - General,"Medical Services, Health Practitioners-Not Elsewhe",GPC
Statement 18/08/2016 -18/09/2016,C&YPS-Non Delegated,TESCO - Yellow Moon,26/08/2016,20.97,General Equipment - General,Miscellaneous and Specialty Retail Stores,GPC
Statement 18/08/2016 -18/09/2016,C&YPS-Non Delegated,TESCO PFS 6178,25/08/2016,17.03,Provisions - General,Service Stations (with or without Ancillary Servic,GPC
Statement 18/08/2016 -18/09/2016,C&YPS-Non Delegated,TESCO STORE 2846,09/09/2016,18.91,Materials - General,"Grocery Stores, Supermarkets",GPC
Statement 18/08/2016 -18/09/2016,C&YPS-Non Delegated,TESCO STORE 2849,25/08/2016,8.5,General Equipment - General,"Grocery Stores, Supermarkets",GPC
Statement 18/08/2016 -18/09/2016,C&YPS-Non Delegated,TESCO STORES 2044,16/08/2016,1.28,Materials - General,"Grocery Stores, Supermarkets",GPC
Statement 18/08/2016 -18/09/2016,C&YPS-Non Delegated,TESCO STORES 2044,17/08/2016,15.09,Materials - General,"Grocery Stores, Supermarkets",GPC
Statement 18/08/2016 -18/09/2016,C&YPS-Non Delegated,TESCO STORES 2849,24/08/2016,13.77,Other Equipment & Materials - General,"Grocery Stores, Supermarkets",GPC
Statement 18/08/2016 -18/09/2016,C&YPS-Non Delegated,TESCO STORES 5067,26/08/2016,1.48,Subsistence - General,"Grocery Stores, Supermarkets",GPC
Statement 18/08/2016 -18/09/2016,C&YPS-Non Delegated,TESCO STORES 6135,08/09/2016,3.25,Materials - General,"Grocery Stores, Supermarkets",GPC
Statement 18/08/2016 -18/09/2016,C&YPS-Non Delegated,TESCO STORES 6135,26/08/2016,11.28,Subsistence - General,"Grocery Stores, Supermarkets",GPC
Statement 18/08/2016 -18/09/2016,C&YPS-Non Delegated,TFH SPECIAL NEEDS,25/08/2016,109.25,Stationery - General,"Hobby, Toy, and Game Shops",GPC
Statement 18/08/2016 -18/09/2016,C&YPS-Non Delegated,THE BOOK PEOPLE,06/09/2016,81.88,Books - General,Book Stores,GPC
Statement 18/08/2016 -18/09/2016,C&YPS-Non Delegated,THE BOOK PEOPLE,06/09/2016,19.99,Books - General,Book Stores,GPC
Statement 18/08/2016 -18/09/2016,C&YPS-Non Delegated,THE HUNTING LODGE,06/09/2016,10.6,Other Expenditure - General,"Eating Places, Restaurants",GPC
Statement 18/08/2016 -18/09/2016,C&YPS-Non Delegated,THE HUNTING LODGE,15/09/2016,4.2,Other Expenditure - General,"Eating Places, Restaurants",GPC
Statement 18/08/2016 -18/09/2016,C&YPS-Non Delegated,THORNTON HOPE LTD,09/09/2016,102,Other Equipment & Materials - General,Miscellaneous Personal Services-Not Elsewhere Clas,GPC
Statement 18/08/2016 -18/09/2016,C&YPS-Non Delegated,TOM TOON AND DAUGHERS,14/09/2016,135,Other Equipment & Materials - General,"Equipment Rental and Leasing Services, Tool Rental",GPC
Statement 18/08/2016 -18/09/2016,C&YPS-Non Delegated,TOUCH-NEEDS LTD,30/08/2016,69.58,Other Equipment & Materials - General,Laboratory/Medical/Dental/Ophthalmic Hospital Equi,GPC
Statement 18/08/2016 -18/09/2016,C&YPS-Non Delegated,TRAINLINE.COM LTD,05/09/2016,165.24,Casual/Essential - General,Passenger Railways,GPC
Statement 18/08/2016 -18/09/2016,C&YPS-Non Delegated,TVLICENSING.CO.UK,18/08/2016,145.5,Other Transfer Payments - Leaving Care Grants,"Management, Consulting and Public Relations Servic",GPC
Statement 18/08/2016 -18/09/2016,C&YPS-Non Delegated,TVLICENSING.CO.UK,18/08/2016,145.5,Other Transfer Payments - Leaving Care Grants,"Management, Consulting and Public Relations Servic",GPC
Statement 18/08/2016 -18/09/2016,C&YPS-Non Delegated,TVLICENSING.CO.UK,14/09/2016,145.5,Other Transfer Payments - Leaving Care Grants,"Management, Consulting and Public Relations Servic",GPC
Statement 18/08/2016 -18/09/2016,C&YPS-Non Delegated,UPT - NOTTINGHAMCITY COU,14/09/2016,6,Schools Agency staff - Teaching Staff,Professional Services-Not Elsewhere Classified,GPC
Statement 18/08/2016 -18/09/2016,C&YPS-Non Delegated,VEALE WASBROUGH VIZARD,14/09/2016,75,Training Expenses - General,"Legal Services, Attorneys",GPC
Statement 18/08/2016 -18/09/2016,C&YPS-Non Delegated,W BOYES & CO LTD COALV,23/08/2016,22.53,Other Equipment & Materials - General,Discount Stores,GPC
Statement 18/08/2016 -18/09/2016,C&YPS-Non Delegated,W M MORRISONS,17/08/2016,27.24,Other Equipment & Materials - General,"Grocery Stores, Supermarkets",GPC
Statement 18/08/2016 -18/09/2016,C&YPS-Non Delegated,WAITROSE 403,16/09/2016,4,General Equipment - General,"Grocery Stores, Supermarkets",GPC
Statement 18/08/2016 -18/09/2016,C&YPS-Non Delegated,WEST COAST TRAINS,14/09/2016,7.5,Casual/Essential - General,Automobile Parking Lots and Garages,GPC
Statement 18/08/2016 -18/09/2016,C&YPS-Non Delegated,WESTMINSTER FORUM,01/09/2016,210,Training Expenses - General,"Management, Consulting and Public Relations Servic",GPC
Statement 18/08/2016 -18/09/2016,C&YPS-Non Delegated,WH SMITH,09/09/2016,8.29,General Equipment - General,News Dealers and Newsstands,GPC
Statement 18/08/2016 -18/09/2016,C&YPS-Non Delegated,WH SMITH,16/09/2016,39.56,General Equipment - General,News Dealers and Newsstands,GPC
Statement 18/08/2016 -18/09/2016,C&YPS-Non Delegated,WH SMITH,12/09/2016,9.94,Newspapers & Periodicals - General,News Dealers and Newsstands,GPC
Statement 18/08/2016 -18/09/2016,C&YPS-Non Delegated,WHITE SWAN HOTEL,06/09/2016,900,Other Services - General,"Lodging-Hotels, Motels, Resorts",GPC
Statement 18/08/2016 -18/09/2016,C&YPS-Non Delegated,WHITE SWAN HOTEL,06/09/2016,900,Other Services - General,"Lodging-Hotels, Motels, Resorts",GPC
Statement 18/08/2016 -18/09/2016,C&YPS-Non Delegated,WILKO RETAIL LIMIT,01/09/2016,8.38,Catering Equipment - General,Household Appliance Stores,GPC
Statement 18/08/2016 -18/09/2016,C&YPS-Non Delegated,WILKO RETAIL LIMIT,02/09/2016,10.42,Catering Equipment - General,Household Appliance Stores,GPC
Statement 18/08/2016 -18/09/2016,C&YPS-Non Delegated,WILKO RETAIL LIMIT,10/09/2016,6,General Equipment - General,Household Appliance Stores,GPC
Statement 18/08/2016 -18/09/2016,C&YPS-Non Delegated,WILKO RETAIL LIMIT,10/09/2016,-6,General Equipment - General,Household Appliance Stores,GPC
Statement 18/08/2016 -18/09/2016,C&YPS-Non Delegated,WILKO RETAIL LIMIT,06/09/2016,5.1,Laundry - General,Household Appliance Stores,GPC
Statement 18/08/2016 -18/09/2016,C&YPS-Non Delegated,WILKO RETAIL LIMIT,18/08/2016,26.5,Materials - General,Household Appliance Stores,GPC
Statement 18/08/2016 -18/09/2016,C&YPS-Non Delegated,WILKO RETAIL LIMIT,23/08/2016,14.8,Other Equipment & Materials - General,Household Appliance Stores,GPC
Statement 18/08/2016 -18/09/2016,C&YPS-Non Delegated,WILKO.COM,19/08/2016,22,Provisions - General,Household Appliance Stores,GPC
Statement 18/08/2016 -18/09/2016,C&YPS-Non Delegated,WM MORRISON 054,01/09/2016,21.14,Materials - General,"Grocery Stores, Supermarkets",GPC
Statement 18/08/2016 -18/09/2016,C&YPS-Non Delegated,WP-MATRIX MOBILES,02/09/2016,58.32,Telephones - Mobile Phones,Telecommunication Equipment Including Telephone Sa,GPC
Statement 18/08/2016 -18/09/2016,C&YPS-Non Delegated,WP-WARWICKSHIRE CO,07/09/2016,10.64,Other Expenditure - General,Government Services-Not Elsewhere Classified,GPC
Statement 18/08/2016 -18/09/2016,C&YPS-Non Delegated,WP-WARWICKSHIRE CO,07/09/2016,10.64,Other Expenditure - General,Government Services-Not Elsewhere Classified,GPC
Statement 18/08/2016 -18/09/2016,C&YPS-Non Delegated,WWW.ANNARBOR.CO.UK,13/09/2016,153,General Equipment - General,Catalog Merchants,GPC
Statement 18/08/2016 -18/09/2016,C&YPS-Non Delegated,WWW.C2UOFFICE.CO.U,26/08/2016,29.17,Materials - General,"Stationery, Office, and School Supply Stores",GPC
Statement 18/08/2016 -18/09/2016,C&YPS-Non Delegated,WWW.COVENTRY.GOV.UK,22/08/2016,11,Other Transfer Payments - Sector 17- Other,RECREATION SERVICES--NOT ELSEWHERE CLASSIFIED,GPC
Statement 18/08/2016 -18/09/2016,C&YPS-Non Delegated,WWW.MILKANDMORE.CO.UK,01/09/2016,9.4,Provisions - General,Continuity/Subscription Merchants,GPC
Statement 18/08/2016 -18/09/2016,C&YPS-Non Delegated,WWW.MILKANDMORE.CO.UK,01/09/2016,14.04,Provisions - General,Continuity/Subscription Merchants,GPC
Statement 18/08/2016 -18/09/2016,C&YPS-Non Delegated,WWW.OCARINA.CO.UK,26/08/2016,396,General Equipment - General,"Music Stores-Musical Instruments, Pianos, Sheet Mu",GPC
Statement 18/08/2016 -18/09/2016,C&YPS-Non Delegated,WWW.THEGLOWCOMPANY.CO.UK,25/08/2016,83.2,Stationery - General,"Gift, Card, Novelty, and Souvenir Shops",GPC
Statement 18/08/2016 -18/09/2016,C&YPS-Non Delegated,WWW.TTS-GROUPS.CO.UK,30/08/2016,139.99,Other Equipment & Materials - General,"Stationery, Office, and School Supply Stores",GPC
Statement 18/08/2016 -18/09/2016,C&YPS-Non Delegated,XC TRAINS LTD,30/08/2016,25.8,Casual/Essential - General,Passenger Railways,GPC
Statement 18/08/2016 -18/09/2016,C&YPS-Schools,ALDI,25/08/2016,22.95,Materials - General,"Grocery Stores, Supermarkets",GPC
Statement 18/08/2016 -18/09/2016,C&YPS-Schools,ALDI,02/09/2016,22.15,Materials - General,"Grocery Stores, Supermarkets",GPC
Statement 18/08/2016 -18/09/2016,C&YPS-Schools,ALDI,12/09/2016,23.95,Materials - General,"Grocery Stores, Supermarkets",GPC
Statement 18/08/2016 -18/09/2016,C&YPS-Schools,Amazon UK Marketplace,05/09/2016,1.75,Books - General,Book Stores,GPC
Statement 18/08/2016 -18/09/2016,C&YPS-Schools,Amazon UK Marketplace,06/09/2016,14.5,Materials - General,Miscellaneous and Specialty Retail Stores,GPC
Statement 18/08/2016 -18/09/2016,C&YPS-Schools,ESPO,14/09/2016,6.34,Other Expenditure - General,Government Services-Not Elsewhere Classified,GPC
Statement 18/08/2016 -18/09/2016,C&YPS-Schools,ESPO,14/09/2016,139.5,Other Expenditure - General,Government Services-Not Elsewhere Classified,GPC
Statement 18/08/2016 -18/09/2016,C&YPS-Schools,SKR AbeBooks.uk 3QVI2N,01/09/2016,2.75,Books - General,Book Stores,GPC
Statement 18/08/2016 -18/09/2016,C&YPS-Schools,SKR AbeBooks.uk 3QVI2O,01/09/2016,2.7,Books - General,Book Stores,GPC
Statement 18/08/2016 -18/09/2016,C&YPS-Schools,SKR AbeBooks.uk 3QVI2P,01/09/2016,2.59,Books - General,Book Stores,GPC
Statement 18/08/2016 -18/09/2016,C&YPS-Schools,SKR AbeBooks.uk 3QVI2Q,02/09/2016,2.2,Books - General,Book Stores,GPC
Statement 18/08/2016 -18/09/2016,C&YPS-Schools,SKR AbeBooks.uk 3R36DB,05/09/2016,4.93,Books - General,Book Stores,GPC
Statement 18/08/2016 -18/09/2016,C&YPS-Schools,SKR AbeBooks.uk 3R36DC,05/09/2016,2.92,Books - General,Book Stores,GPC
Statement 18/08/2016 -18/09/2016,C&YPS-Schools,SKR AbeBooks.uk 3R36DD,05/09/2016,5.18,Books - General,Book Stores,GPC
Statement 18/08/2016 -18/09/2016,Capital,CENTRAL SOURCE LTD,18/08/2016,365,I.T. Equipment - Expenditure,Miscellaneous Publishing and  Printing,GPC
Statement 18/08/2016 -18/09/2016,Capital,KENABLE LTD,30/08/2016,55.32,I.T. Equipment - Expenditure,"RADIO, TELEVISION, AND STEREO STORES (ELECTRONIC STORES)",GPC
Statement 18/08/2016 -18/09/2016,Capital,VALUE PRODUCTS LTD,18/08/2016,21.75,I.T. Equipment - Expenditure,Miscellaneous and Specialty Retail Stores,GPC
Statement 18/08/2016 -18/09/2016,Chief Executive,Amazon Prime,26/08/2016,7.99,Other Expenditure - General,Continuity/Subscription Merchants,GPC
Statement 18/08/2016 -18/09/2016,Chief Executive,Amazon UK Marketplace,17/08/2016,23.72,Materials - General,Miscellaneous and Specialty Retail Stores,GPC
Statement 18/08/2016 -18/09/2016,Chief Executive,Amazon UK Marketplace,01/09/2016,5.62,Materials - General,Miscellaneous and Specialty Retail Stores,GPC
Statement 18/08/2016 -18/09/2016,Chief Executive,Amazon UK Marketplace,07/09/2016,22.27,Operational Equipment - General,Miscellaneous and Specialty Retail Stores,GPC
Statement 18/08/2016 -18/09/2016,Chief Executive,Amazon UK Marketplace,31/08/2016,2.71,Stationery - General,Book Stores,GPC
Statement 18/08/2016 -18/09/2016,Chief Executive,Amazon UK Marketplace,15/09/2016,12.28,Stationery - General,Book Stores,GPC
Statement 18/08/2016 -18/09/2016,Chief Executive,Amazon UK Retail,17/08/2016,23.12,Other Expenditure - General,Direct Marketers - Other,GPC
Statement 18/08/2016 -18/09/2016,Chief Executive,Amazon UK Retail,09/09/2016,27.19,Stationery - General,Direct Marketers - Other,GPC
Statement 18/08/2016 -18/09/2016,Chief Executive,AMAZON UK RETAIL AMAZON.C,01/09/2016,256.63,Materials - General,Miscellaneous and Specialty Retail Stores,GPC
Statement 18/08/2016 -18/09/2016,Chief Executive,CHARNWOOD BOROUGH COUNCI,19/08/2016,3.2,Casual/Essential - General,Automobile Parking Lots and Garages,GPC
Statement 18/08/2016 -18/09/2016,Chief Executive,CHARNWOOD BOROUGH COUNCI,01/09/2016,2.2,Casual/Essential - General,Automobile Parking Lots and Garages,GPC
Statement 18/08/2016 -18/09/2016,Chief Executive,GOTOCITRIX.COM,08/09/2016,34.8,IT Equipment - Licences,Continuity/Subscription Merchants,GPC
Statement 18/08/2016 -18/09/2016,Chief Executive,HTTP://PMSE.OFCOM.ORG.,24/08/2016,168,Other Expenditure - General,Professional Services-Not Elsewhere Classified,GPC
Statement 18/08/2016 -18/09/2016,Chief Executive,LEICESTER THEATRE TRUS,14/09/2016,500,Hospitality - General,Charitable and Social Service Organizations,GPC
Statement 18/08/2016 -18/09/2016,Chief Executive,LEICESTER THEATRE TRUS,14/09/2016,600,Hospitality - General,Charitable and Social Service Organizations,GPC
Statement 18/08/2016 -18/09/2016,Chief Executive,LUL TICKET MACHINE,15/09/2016,9.8,Casual/Essential - General,Passenger Railways,GPC
Statement 18/08/2016 -18/09/2016,Chief Executive,MAN.AIRPORT REVENUE OF,16/09/2016,77.88,Casual/Essential - General,"Airports, Airport Terminals, Flying Fields",GPC
Statement 18/08/2016 -18/09/2016,Chief Executive,MAN.AIRPORT REVENUE OF,06/09/2016,21.6,Other Expenditure - General,"Airports, Airport Terminals, Flying Fields",GPC
Statement 18/08/2016 -18/09/2016,Chief Executive,MAN.AIRPORT REVENUE OF,13/09/2016,21.6,Other Expenditure - General,"Airports, Airport Terminals, Flying Fields",GPC
Statement 18/08/2016 -18/09/2016,Chief Executive,NCP LIMITED,09/09/2016,6.25,Casual/Essential - General,Automobile Parking Lots and Garages,GPC
Statement 18/08/2016 -18/09/2016,Chief Executive,PARKING LEIC CC,31/08/2016,3,Other Expenditure - General,Government Services-Not Elsewhere Classified,GPC
Statement 18/08/2016 -18/09/2016,Chief Executive,PARKING LEIC CC,07/09/2016,4,Other Expenditure - General,Government Services-Not Elsewhere Classified,GPC
Statement 18/08/2016 -18/09/2016,Chief Executive,ROYAL MAIL,23/08/2016,55,Postal Services - General,Postage Stamps,GPC
Statement 18/08/2016 -18/09/2016,Chief Executive,ROYAL MAIL,16/09/2016,128,Postal Services - General,Postage Stamps,GPC
Statement 18/08/2016 -18/09/2016,Chief Executive,THE INTELLECTUAL PROPERTY,31/08/2016,220,Other Expenditure - General,Government Services-Not Elsewhere Classified,GPC
Statement 18/08/2016 -18/09/2016,Chief Executive,UPT-EAST MIDLANDS TRN-LB,15/09/2016,12,Schools Agency staff - Teaching Staff,Professional Services-Not Elsewhere Classified,GPC
Statement 18/08/2016 -18/09/2016,Corporate Resources,Amazon UK Marketplace,16/09/2016,2.59,Books - General,Book Stores,GPC
Statement 18/08/2016 -18/09/2016,Corporate Resources,Amazon UK Marketplace,25/08/2016,185.25,IT Equipment - Purchase - Hardware,Miscellaneous and Specialty Retail Stores,GPC
Statement 18/08/2016 -18/09/2016,Corporate Resources,Amazon UK Marketplace,07/09/2016,47.2,Materials - General,Miscellaneous and Specialty Retail Stores,GPC
Statement 18/08/2016 -18/09/2016,Corporate Resources,Amazon UK Marketplace,13/09/2016,45.83,Materials - General,Miscellaneous and Specialty Retail Stores,GPC
Statement 18/08/2016 -18/09/2016,Corporate Resources,Amazon UK Marketplace,13/09/2016,109.8,Materials - General,Miscellaneous and Specialty Retail Stores,GPC
Statement 18/08/2016 -18/09/2016,Corporate Resources,Amazon UK Marketplace,14/09/2016,31.84,Other Expenditure - General,Miscellaneous and Specialty Retail Stores,GPC
Statement 18/08/2016 -18/09/2016,Corporate Resources,Amazon UK Marketplace,20/08/2016,19.95,Stationery - General,Book Stores,GPC
Statement 18/08/2016 -18/09/2016,Corporate Resources,Amazon UK Marketplace,13/09/2016,1.95,Stationery - General,Miscellaneous and Specialty Retail Stores,GPC
Statement 18/08/2016 -18/09/2016,Corporate Resources,Amazon UK Marketplace,15/09/2016,43.95,Stationery - General,Miscellaneous and Specialty Retail Stores,GPC
Statement 18/08/2016 -18/09/2016,Corporate Resources,Amazon UK Marketplace,16/09/2016,1.44,Stationery - General,Miscellaneous and Specialty Retail Stores,GPC
Statement 18/08/2016 -18/09/2016,Corporate Resources,Amazon UK Marketplace,16/09/2016,3.8,Stationery - General,Miscellaneous and Specialty Retail Stores,GPC
Statement 18/08/2016 -18/09/2016,Corporate Resources,Amazon UK Retail,19/08/2016,38.95,IT Equipment - Purchase - Hardware,Direct Marketers - Other,GPC
Statement 18/08/2016 -18/09/2016,Corporate Resources,Amazon UK Retail,31/08/2016,25.82,IT Equipment - Purchase - Hardware,Direct Marketers - Other,GPC
Statement 18/08/2016 -18/09/2016,Corporate Resources,Amazon UK Retail,15/09/2016,17.76,Other Expenditure - General,Direct Marketers - Other,GPC
Statement 18/08/2016 -18/09/2016,Corporate Resources,AMAZON UK RETAIL AMAZON.C,23/08/2016,13.32,IT Equipment - Purchase - Hardware,Miscellaneous and Specialty Retail Stores,GPC
Statement 18/08/2016 -18/09/2016,Corporate Resources,AMAZON UK RETAIL AMAZON.C,25/08/2016,84.95,Training Expenses - General,Miscellaneous and Specialty Retail Stores,GPC
Statement 18/08/2016 -18/09/2016,Corporate Resources,AMAZON UK RETAIL AMAZON.C,15/09/2016,27.87,Training Expenses - General,Miscellaneous and Specialty Retail Stores,GPC
Statement 18/08/2016 -18/09/2016,Corporate Resources,ARTICRAFTS LIMITED,05/09/2016,8.99,Stationery - General,"Stationery, Office, and School Supply Stores",GPC
Statement 18/08/2016 -18/09/2016,Corporate Resources,ASDA STORES 4477,17/08/2016,10.15,Other Expenditure - General,"Grocery Stores, Supermarkets",GPC
Statement 18/08/2016 -18/09/2016,Corporate Resources,ASDA STORES 4477,25/08/2016,0.95,Other Expenditure - General,"Grocery Stores, Supermarkets",GPC
Statement 18/08/2016 -18/09/2016,Corporate Resources,ASDA STORES 4477,31/08/2016,1.01,Other Expenditure - General,"Grocery Stores, Supermarkets",GPC
Statement 18/08/2016 -18/09/2016,Corporate Resources,ASDA STORES 4477,05/09/2016,4.45,Other Expenditure - General,"Grocery Stores, Supermarkets",GPC
Statement 18/08/2016 -18/09/2016,Corporate Resources,ASDA STORES 4477,08/09/2016,3.45,Other Expenditure - General,"Grocery Stores, Supermarkets",GPC
Statement 18/08/2016 -18/09/2016,Corporate Resources,ASDA STORES 4477,13/09/2016,3.4,Other Expenditure - General,"Grocery Stores, Supermarkets",GPC
Statement 18/08/2016 -18/09/2016,Corporate Resources,ASDA STORES 4477,14/09/2016,9.93,Other Expenditure - General,"Grocery Stores, Supermarkets",GPC
Statement 18/08/2016 -18/09/2016,Corporate Resources,B & Q 1052,12/09/2016,11.67,Other Expenditure - General,"Building Materials, Lumber Stores",GPC
Statement 18/08/2016 -18/09/2016,Corporate Resources,B & Q 1052,23/08/2016,62.74,R & M of Buildings - General,"Building Materials, Lumber Stores",GPC
Statement 18/08/2016 -18/09/2016,Corporate Resources,BASPCAN  YORK,12/08/2016,180,Training Expenses - General,Charitable and Social Service Organizations,GPC
Statement 18/08/2016 -18/09/2016,Corporate Resources,BENCHMARQ LTD,06/09/2016,445,Training Expenses - General,"Computers, Computer Peripheral Equipment, Software",GPC
Statement 18/08/2016 -18/09/2016,Corporate Resources,BICS LTD REC,02/09/2016,476.19,Subscriptions - General,Continuity/Subscription Merchants,GPC
Statement 18/08/2016 -18/09/2016,Corporate Resources,BLABY DISTRICT COUNCIL,17/08/2016,3.75,Public Transport -  Staff - General,Automobile Parking Lots and Garages,GPC
Statement 18/08/2016 -18/09/2016,Corporate Resources,BLABY DISTRICT COUNCIL,22/08/2016,3.75,Public Transport -  Staff - General,Automobile Parking Lots and Garages,GPC
Statement 18/08/2016 -18/09/2016,Corporate Resources,BOWTIE,09/09/2016,658.26,Printing - General,Photographic Studios,GPC
Statement 18/08/2016 -18/09/2016,Corporate Resources,BP CLOCKTOWER S/STN,08/09/2016,38.73,R&M of Vehicles-Non Contract - General,Service Stations (with or without Ancillary Servic,GPC
Statement 18/08/2016 -18/09/2016,Corporate Resources,BREAKFAST & COMPANY LE,25/08/2016,183.48,Subsistence - General,"Eating Places, Restaurants",GPC
Statement 18/08/2016 -18/09/2016,Corporate Resources,BUS TICKET OR EMT WIFI,31/08/2016,15,Public Transport -  Staff - General,"Bus Lines, Charters, Tour Buses",GPC
Statement 18/08/2016 -18/09/2016,Corporate Resources,CAFE ROUGE,06/09/2016,12.75,Subsistence - General,"Eating Places, Restaurants",GPC
Statement 18/08/2016 -18/09/2016,Corporate Resources,CAFFE NERO,07/09/2016,2.7,Subsistence - General,"Eating Places, Restaurants",GPC
Statement 18/08/2016 -18/09/2016,Corporate Resources,CANBURY PRESS,22/08/2016,25,Publicity/Marketing - General,Computer Software Stores,GPC
Statement 18/08/2016 -18/09/2016,Corporate Resources,CHARTERED INSTITUTE OF,14/09/2016,100,Training Expenses - General,"Accounting, Auditing, and Bookkeeping Services",GPC
Statement 18/08/2016 -18/09/2016,Corporate Resources,CIEH,05/09/2016,55,Training Expenses - General,Membership Organizations-Not Elsewhere Classified,GPC
Statement 18/08/2016 -18/09/2016,Corporate Resources,CIEH,06/09/2016,837.25,Training Expenses - General,Membership Organizations-Not Elsewhere Classified,GPC
Statement 18/08/2016 -18/09/2016,Corporate Resources,CJ WILDBIRD FOODS,19/08/2016,25.47,Other Services - General,Pet Shops-Pet Food and Supplies,GPC
Statement 18/08/2016 -18/09/2016,Corporate Resources,CO-OP GROUP 070412,31/08/2016,21.53,Other Expenditure - General,"Grocery Stores, Supermarkets",GPC
Statement 18/08/2016 -18/09/2016,Corporate Resources,CO-OP GROUP 070412,07/09/2016,16.15,Other Expenditure - General,"Grocery Stores, Supermarkets",GPC
Statement 18/08/2016 -18/09/2016,Corporate Resources,CROSS COUNTRY,30/08/2016,279,Training Expenses - General,Passenger Railways,GPC
Statement 18/08/2016 -18/09/2016,Corporate Resources,CROSS COUNTRY CC,23/08/2016,161,Training Expenses - General,Passenger Railways,GPC
Statement 18/08/2016 -18/09/2016,Corporate Resources,CROSS COUNTRY CC,30/08/2016,157.5,Training Expenses - General,Passenger Railways,GPC
Statement 18/08/2016 -18/09/2016,Corporate Resources,CROSS COUNTRY CC,13/09/2016,34.9,Training Expenses - General,Passenger Railways,GPC
Statement 18/08/2016 -18/09/2016,Corporate Resources,CURRYS ONLINE,19/08/2016,38.93,Stationery - General,"RADIO, TELEVISION, AND STEREO STORES (ELECTRONIC STORES)",GPC
Statement 18/08/2016 -18/09/2016,Corporate Resources,CURRYS ONLINE,19/08/2016,-14.99,Stationery - General,"RADIO, TELEVISION, AND STEREO STORES (ELECTRONIC STORES)",GPC
Statement 18/08/2016 -18/09/2016,Corporate Resources,CURRYS SUPERSTORE,18/08/2016,17.49,Materials - General,"RADIO, TELEVISION, AND STEREO STORES (ELECTRONIC STORES)",GPC
Statement 18/08/2016 -18/09/2016,Corporate Resources,CYB GLASS FIBRE,07/09/2016,154.92,R & M of Buildings - General,Construction Materials Not Elsewhere Classified,GPC
Statement 18/08/2016 -18/09/2016,Corporate Resources,CYB GLASS FIBRE,09/09/2016,-154.92,R & M of Buildings - General,Construction Materials Not Elsewhere Classified,GPC
Statement 18/08/2016 -18/09/2016,Corporate Resources,DESTINET LTD,29/08/2016,174,Publicity/Marketing - General,Advertising Services,GPC
Statement 18/08/2016 -18/09/2016,Corporate Resources,DISCLOSURE SCOT,19/08/2016,25,Other Expenditure - General,Government Services-Not Elsewhere Classified,GPC
Statement 18/08/2016 -18/09/2016,Corporate Resources,DISCLOSURE SCOT,19/08/2016,25,Other Expenditure - General,Government Services-Not Elsewhere Classified,GPC
Statement 18/08/2016 -18/09/2016,Corporate Resources,DISCLOSURE SCOT,26/08/2016,25,Other Expenditure - General,Government Services-Not Elsewhere Classified,GPC
Statement 18/08/2016 -18/09/2016,Corporate Resources,DISCLOSURE SCOT,02/09/2016,25,Other Expenditure - General,Government Services-Not Elsewhere Classified,GPC
Statement 18/08/2016 -18/09/2016,Corporate Resources,DISCLOSURE SCOT,09/09/2016,25,Other Expenditure - General,Government Services-Not Elsewhere Classified,GPC
Statement 18/08/2016 -18/09/2016,Corporate Resources,DISPLAYSENSE.CO.UK,13/09/2016,184.87,Materials - General,Commercial Equipment Not Elsewhere Classified,GPC
Statement 18/08/2016 -18/09/2016,Corporate Resources,DIXONS,17/08/2016,10.83,Stationery - General,"RADIO, TELEVISION, AND STEREO STORES (ELECTRONIC STORES)",GPC
Statement 18/08/2016 -18/09/2016,Corporate Resources,DVLA DIGITAL TACHO,13/09/2016,19,Road Licences - General,Government Services-Not Elsewhere Classified,GPC
Statement 18/08/2016 -18/09/2016,Corporate Resources,EAST MIDLAND TRAINS,15/09/2016,7.5,Casual/Essential - General,Automobile Parking Lots and Garages,GPC
Statement 18/08/2016 -18/09/2016,Corporate Resources,EAST MIDLAND TRAINS,12/09/2016,7.5,Public Transport -  Staff - General,Automobile Parking Lots and Garages,GPC
Statement 18/08/2016 -18/09/2016,Corporate Resources,EAST MIDLANDS LEICESTER,23/08/2016,7.5,Casual/Essential - General,Automobile Parking Lots and Garages,GPC
Statement 18/08/2016 -18/09/2016,Corporate Resources,EAST MIDLANDS LEICESTER,15/09/2016,14,Casual/Essential - General,Automobile Parking Lots and Garages,GPC
Statement 18/08/2016 -18/09/2016,Corporate Resources,EAST MIDLANDS LEICESTER,15/09/2016,14,Casual/Essential - General,Automobile Parking Lots and Garages,GPC
Statement 18/08/2016 -18/09/2016,Corporate Resources,EAST MIDLANDS LEICESTER,16/08/2016,7.5,Public Transport -  Staff - General,Automobile Parking Lots and Garages,GPC
Statement 18/08/2016 -18/09/2016,Corporate Resources,EAST MIDLANDS LEICESTER,17/08/2016,13.5,Public Transport -  Staff - General,Automobile Parking Lots and Garages,GPC
Statement 18/08/2016 -18/09/2016,Corporate Resources,EAST MIDLANDS LEICESTER,18/08/2016,13.5,Public Transport -  Staff - General,Automobile Parking Lots and Garages,GPC
Statement 18/08/2016 -18/09/2016,Corporate Resources,EAST MIDLANDS LEICESTER,24/08/2016,13.5,Public Transport -  Staff - General,Automobile Parking Lots and Garages,GPC
Statement 18/08/2016 -18/09/2016,Corporate Resources,EAST MIDLANDS LEICESTER,24/08/2016,21,Public Transport -  Staff - General,Automobile Parking Lots and Garages,GPC
Statement 18/08/2016 -18/09/2016,Corporate Resources,EAST MIDLANDS LEICESTER,24/08/2016,34.5,Public Transport -  Staff - General,Automobile Parking Lots and Garages,GPC
Statement 18/08/2016 -18/09/2016,Corporate Resources,EAST MIDLANDS LEICESTER,26/08/2016,27,Public Transport -  Staff - General,Automobile Parking Lots and Garages,GPC
Statement 18/08/2016 -18/09/2016,Corporate Resources,EAST MIDLANDS LEICESTER,07/09/2016,14,Public Transport -  Staff - General,Automobile Parking Lots and Garages,GPC
Statement 18/08/2016 -18/09/2016,Corporate Resources,EAST MIDLANDS LEICESTER,09/09/2016,14,Public Transport -  Staff - General,Automobile Parking Lots and Garages,GPC
Statement 18/08/2016 -18/09/2016,Corporate Resources,EAST MIDLANDS LEICESTER,12/09/2016,14,Public Transport -  Staff - General,Automobile Parking Lots and Garages,GPC
Statement 18/08/2016 -18/09/2016,Corporate Resources,EAST MIDLANDS MARKET HAR,15/09/2016,11.5,Casual/Essential - General,Automobile Parking Lots and Garages,GPC
Statement 18/08/2016 -18/09/2016,Corporate Resources,EAST MIDLANDS MARKET HAR,15/09/2016,6.5,Casual/Essential - General,Automobile Parking Lots and Garages,GPC
Statement 18/08/2016 -18/09/2016,Corporate Resources,EAST MIDLANDS MARKET HAR,16/09/2016,34.5,Casual/Essential - General,Automobile Parking Lots and Garages,GPC
Statement 18/08/2016 -18/09/2016,Corporate Resources,EAST MIDLANDS MARKET HAR,16/08/2016,11,Public Transport -  Staff - General,Automobile Parking Lots and Garages,GPC
Statement 18/08/2016 -18/09/2016,Corporate Resources,EAST MIDLANDS MARKET HAR,16/08/2016,11,Public Transport -  Staff - General,Automobile Parking Lots and Garages,GPC
Statement 18/08/2016 -18/09/2016,Corporate Resources,EAST MIDLANDS MARKET HAR,22/08/2016,11,Public Transport -  Staff - General,Automobile Parking Lots and Garages,GPC
Statement 18/08/2016 -18/09/2016,Corporate Resources,EAST MIDLANDS MARKET HAR,31/08/2016,11,Public Transport -  Staff - General,Automobile Parking Lots and Garages,GPC
Statement 18/08/2016 -18/09/2016,Corporate Resources,EAST MIDLANDS MARKET HAR,05/09/2016,11,Public Transport -  Staff - General,Automobile Parking Lots and Garages,GPC
Statement 18/08/2016 -18/09/2016,Corporate Resources,EAST MIDLANDS MARKET HAR,05/09/2016,11,Public Transport -  Staff - General,Automobile Parking Lots and Garages,GPC
Statement 18/08/2016 -18/09/2016,Corporate Resources,EAST MIDLANDS MARKET HAR,08/09/2016,11.5,Public Transport -  Staff - General,Automobile Parking Lots and Garages,GPC
Statement 18/08/2016 -18/09/2016,Corporate Resources,EAST MIDLANDS MARKET HAR,08/09/2016,23,Public Transport -  Staff - General,Automobile Parking Lots and Garages,GPC
Statement 18/08/2016 -18/09/2016,Corporate Resources,EAST MIDLANDS MARKET HAR,09/09/2016,11.5,Public Transport -  Staff - General,Automobile Parking Lots and Garages,GPC
Statement 18/08/2016 -18/09/2016,Corporate Resources,EAST MIDLANDS MARKET HAR,12/09/2016,11.5,Public Transport -  Staff - General,Automobile Parking Lots and Garages,GPC
Statement 18/08/2016 -18/09/2016,Corporate Resources,EAST MIDLANDS MARKET HAR,13/09/2016,11.5,Public Transport -  Staff - General,Automobile Parking Lots and Garages,GPC
Statement 18/08/2016 -18/09/2016,Corporate Resources,EAST MIDLANDS MARKET HAR,13/09/2016,6.5,Public Transport -  Staff - General,Automobile Parking Lots and Garages,GPC
Statement 18/08/2016 -18/09/2016,Corporate Resources,EAST MIDLANDS MARKET HAR,14/09/2016,11.5,Public Transport -  Staff - General,Automobile Parking Lots and Garages,GPC
Statement 18/08/2016 -18/09/2016,Corporate Resources,EAST MIDLANDS MARKET HAR,14/09/2016,23,Public Transport -  Staff - General,Automobile Parking Lots and Garages,GPC
Statement 18/08/2016 -18/09/2016,Corporate Resources,EAST MIDLANDS TRAI,12/09/2016,69,Public Transport -  Staff - General,Passenger Railways,GPC
Statement 18/08/2016 -18/09/2016,Corporate Resources,EAST MIDLANDS TRAI,13/09/2016,56.5,Public Transport -  Staff - General,Passenger Railways,GPC
Statement 18/08/2016 -18/09/2016,Corporate Resources,EAST MIDLANDS TRAI,14/09/2016,56.5,Public Transport -  Staff - General,Passenger Railways,GPC
Statement 18/08/2016 -18/09/2016,Corporate Resources,EASTMIDLANDSTRAINS,05/09/2016,149.16,Public Transport -  Staff - General,Passenger Railways,GPC
Statement 18/08/2016 -18/09/2016,Corporate Resources,EASTMIDLANDSTRAINS,09/09/2016,475.5,Public Transport -  Staff - General,Passenger Railways,GPC
Statement 18/08/2016 -18/09/2016,Corporate Resources,EATS,14/09/2016,3.45,Subsistence - General,"Eating Places, Restaurants",GPC
Statement 18/08/2016 -18/09/2016,Corporate Resources,EB  IMMUNISING YOUR HE,02/09/2016,5,Subsistence - General,Business Services-Not Elsewhere Classified,GPC
Statement 18/08/2016 -18/09/2016,Corporate Resources,EB  RESILIENT COMMUNIT,06/09/2016,53.94,Training Expenses - General,Business Services-Not Elsewhere Classified,GPC
Statement 18/08/2016 -18/09/2016,Corporate Resources,ECLIPSE NETWORKING LIM,23/08/2016,229.99,IT Equipment - General,Continuity/Subscription Merchants,GPC
Statement 18/08/2016 -18/09/2016,Corporate Resources,FACEBK 8HEX4AWSE2,31/08/2016,291.45,Publicity/Marketing - General,Advertising Services,GPC
Statement 18/08/2016 -18/09/2016,Corporate Resources,FAROL LIMITED,19/08/2016,74.23,R&M of Vehicles-Non Contract - General,Miscellaneous Automotive Dealers -  Not Elsewhere,GPC
Statement 18/08/2016 -18/09/2016,Corporate Resources,FOREIGN EXCHANGE FEE,25/08/2016,3.13,Publicity/Marketing - General,Misc-Unknown,GPC
Statement 18/08/2016 -18/09/2016,Corporate Resources,FOREIGN EXCHANGE FEE,12/09/2016,1.22,Subscriptions - General,Misc-Unknown,GPC
Statement 18/08/2016 -18/09/2016,Corporate Resources,FRIENDS HOUSE,09/09/2016,14.3,Subsistence - General,Religious Organizations,GPC
Statement 18/08/2016 -18/09/2016,Corporate Resources,FRIENDS MEETING HOUSE,02/09/2016,125,Hospitality - General,Business Services-Not Elsewhere Classified,GPC
Statement 18/08/2016 -18/09/2016,Corporate Resources,GANTTIC LLC,11/09/2016,44.43,Subscriptions - General,Miscellaneous and Specialty Retail Stores,GPC
Statement 18/08/2016 -18/09/2016,Corporate Resources,GEORGE WALKER,22/08/2016,86.08,Other Services - General,"Building Materials, Lumber Stores",GPC
Statement 18/08/2016 -18/09/2016,Corporate Resources,GEORGE WALKER,22/08/2016,91.5,Other Services - General,"Building Materials, Lumber Stores",GPC
Statement 18/08/2016 -18/09/2016,Corporate Resources,GEORGE WALKER,24/08/2016,34,Other Services - General,"Building Materials, Lumber Stores",GPC
Statement 18/08/2016 -18/09/2016,Corporate Resources,GEORGE WALKER,25/08/2016,75,Other Services - General,"Building Materials, Lumber Stores",GPC
Statement 18/08/2016 -18/09/2016,Corporate Resources,GNH KIOSK,13/09/2016,7,Subsistence - General,"Lodging-Hotels, Motels, Resorts",GPC
Statement 18/08/2016 -18/09/2016,Corporate Resources,GOURMET COFFEE BAR,24/08/2016,2.5,Subsistence - General,Fast-Food Restaurants (Quick Payment Service Pilot,GPC
Statement 18/08/2016 -18/09/2016,Corporate Resources,GOVERNMENT KNOWLEDGE L,15/09/2016,345,Training Expenses - General,Business Services-Not Elsewhere Classified,GPC
Statement 18/08/2016 -18/09/2016,Corporate Resources,GUEST MEDICAL LTD,13/09/2016,257.5,Materials - General,Miscellaneous and Specialty Retail Stores,GPC
Statement 18/08/2016 -18/09/2016,Corporate Resources,HAKKASAN MAYFAIR,12/09/2016,34.96,Subsistence - General,"Eating Places, Restaurants",GPC
Statement 18/08/2016 -18/09/2016,Corporate Resources,HARLOW BROS LTD,27/08/2016,32.8,Other Expenditure - General,"Building Materials, Lumber Stores",GPC
Statement 18/08/2016 -18/09/2016,Corporate Resources,HARLOW BROS LTD,25/08/2016,33.92,Other Services - General,"Building Materials, Lumber Stores",GPC
Statement 18/08/2016 -18/09/2016,Corporate Resources,HARLOW BROS LTD,26/08/2016,48.92,Other Services - General,"Building Materials, Lumber Stores",GPC
Statement 18/08/2016 -18/09/2016,Corporate Resources,HIGGOTTS,08/09/2016,34.94,Other Expenditure - General,Landscaping and Horticultural Services,GPC
Statement 18/08/2016 -18/09/2016,Corporate Resources,HIMAN & COMPANY,01/09/2016,68,R & M of Buildings - General,Business Services-Not Elsewhere Classified,GPC
Statement 18/08/2016 -18/09/2016,Corporate Resources,HOC CRS,09/09/2016,952.25,Subsistence - General,"Eating Places, Restaurants",GPC
Statement 18/08/2016 -18/09/2016,Corporate Resources,HOOTSUITE MEDIA INC.,24/08/2016,113.99,Publicity/Marketing - General,Business Services-Not Elsewhere Classified,GPC
Statement 18/08/2016 -18/09/2016,Corporate Resources,HTTP://ACE.APPRENTICES,25/08/2016,22,Training Expenses - General,"Management, Consulting and Public Relations Servic",GPC
Statement 18/08/2016 -18/09/2016,Corporate Resources,HTTP://ACE.APPRENTICES,30/08/2016,22,Training Expenses - General,"Management, Consulting and Public Relations Servic",GPC
Statement 18/08/2016 -18/09/2016,Corporate Resources,HTTP://ACE.APPRENTICES,06/09/2016,22,Training Expenses - General,"Management, Consulting and Public Relations Servic",GPC
Statement 18/08/2016 -18/09/2016,Corporate Resources,INDIGO PARK SOLUTI,25/08/2016,15.4,Public Transport -  Staff - General,Automobile Parking Lots and Garages,GPC
Statement 18/08/2016 -18/09/2016,Corporate Resources,ISELECT CONSULTANCY,24/08/2016,358,Training Expenses - General,"Management, Consulting and Public Relations Servic",GPC
Statement 18/08/2016 -18/09/2016,Corporate Resources,ITSU 062 EUSTON PIAZZA,12/09/2016,13.77,Subsistence - General,"Eating Places, Restaurants",GPC
Statement 18/08/2016 -18/09/2016,Corporate Resources,IZ  Friska Ltd,08/09/2016,2.95,Subsistence - General,"Eating Places, Restaurants",GPC
Statement 18/08/2016 -18/09/2016,Corporate Resources,JACOBS COFFEE HOUSE,24/08/2016,12.1,Subsistence - General,"Eating Places, Restaurants",GPC
Statement 18/08/2016 -18/09/2016,Corporate Resources,JOHNSTONES DECORATING,22/08/2016,99.5,Other Expenditure - General,"Glass, Paint, Wallpaper Stores",GPC
Statement 18/08/2016 -18/09/2016,Corporate Resources,KINGS CROSS TIC,12/09/2016,25,Casual/Essential - General,Passenger Railways,GPC
Statement 18/08/2016 -18/09/2016,Corporate Resources,L HARRIS,08/09/2016,20,Materials - General,Hardware Stores,GPC
Statement 18/08/2016 -18/09/2016,Corporate Resources,LANGTON GARDEN CEN,16/09/2016,23.9,Materials - General,"Lawn and Garden Supply Stores, Nurseries",GPC
Statement 18/08/2016 -18/09/2016,Corporate Resources,LCC CATERING SERVICES,06/09/2016,4.75,Other Expenditure - General,Government Services-Not Elsewhere Classified,GPC
Statement 18/08/2016 -18/09/2016,Corporate Resources,LCC CATERING SERVICES,02/09/2016,4.1,Subsistence - General,Government Services-Not Elsewhere Classified,GPC
Statement 18/08/2016 -18/09/2016,Corporate Resources,LE FEVRES STORES,27/08/2016,7.47,Other Expenditure - General,"Grocery Stores, Supermarkets",GPC
Statement 18/08/2016 -18/09/2016,Corporate Resources,LINKEDIN-2907655334,18/08/2016,227.94,Other Expenditure - General,Continuity/Subscription Merchants,GPC
Statement 18/08/2016 -18/09/2016,Corporate Resources,LINKEDIN-338 6236633,01/09/2016,227.94,Other Expenditure - General,Continuity/Subscription Merchants,GPC
Statement 18/08/2016 -18/09/2016,Corporate Resources,LINKEDIN-338 6239493,01/09/2016,227.94,Other Expenditure - General,Continuity/Subscription Merchants,GPC
Statement 18/08/2016 -18/09/2016,Corporate Resources,LINKEDIN-3386238823,01/09/2016,227.94,Other Expenditure - General,Continuity/Subscription Merchants,GPC
Statement 18/08/2016 -18/09/2016,Corporate Resources,LINKEDIN-3386239173,01/09/2016,227.94,Other Expenditure - General,Continuity/Subscription Merchants,GPC
Statement 18/08/2016 -18/09/2016,Corporate Resources,LINKEDIN-339 3566073,09/09/2016,227.94,Other Expenditure - General,Continuity/Subscription Merchants,GPC
Statement 18/08/2016 -18/09/2016,Corporate Resources,LINKEDIN-3390579163,06/09/2016,227.94,Other Expenditure - General,Continuity/Subscription Merchants,GPC
Statement 18/08/2016 -18/09/2016,Corporate Resources,LOUGHBOROUGH SST,13/09/2016,23.2,Public Transport -  Staff - General,Passenger Railways,GPC
Statement 18/08/2016 -18/09/2016,Corporate Resources,LUL TICKET MACHINE,12/09/2016,10,Casual/Essential - General,Passenger Railways,GPC
Statement 18/08/2016 -18/09/2016,Corporate Resources,LUL TICKET MACHINE,12/09/2016,50,Public Transport -  Staff - General,Passenger Railways,GPC
Statement 18/08/2016 -18/09/2016,Corporate Resources,LUL TICKET MACHINE,15/09/2016,30,Public Transport -  Staff - General,Passenger Railways,GPC
Statement 18/08/2016 -18/09/2016,Corporate Resources,LUL TICKET MACHINE,15/09/2016,12.1,Public Transport -  Staff - General,Passenger Railways,GPC
Statement 18/08/2016 -18/09/2016,Corporate Resources,M&S SIMPLY FOOD - SSP,12/09/2016,10.8,Subsistence - General,"Miscellaneous Food Stores-Convenience Stores, Mark",GPC
Statement 18/08/2016 -18/09/2016,Corporate Resources,M&S SIMPLY FOOD - SSP,12/09/2016,8.39,Subsistence - General,"Miscellaneous Food Stores-Convenience Stores, Mark",GPC
Statement 18/08/2016 -18/09/2016,Corporate Resources,Mailbox Car Park Limited,26/08/2016,22.5,Public Transport -  Staff - General,Automobile Parking Lots and Garages,GPC
Statement 18/08/2016 -18/09/2016,Corporate Resources,MAKRO SELF SERVICE LEICES,24/08/2016,4.46,Training Expenses - General,Wholesale Clubs,GPC
Statement 18/08/2016 -18/09/2016,Corporate Resources,MALMAISON BHAM,26/08/2016,34.1,Subsistence - General,"Lodging-Hotels, Motels, Resorts",GPC
Statement 18/08/2016 -18/09/2016,Corporate Resources,MCDONALDS,04/09/2016,41.73,Other Allowances/Expenses - General,"Eating Places, Restaurants",GPC
Statement 18/08/2016 -18/09/2016,Corporate Resources,MCDONALDS,15/09/2016,4.59,Subsistence - General,Fast-Food Restaurants (Quick Payment Service Pilot,GPC
Statement 18/08/2016 -18/09/2016,Corporate Resources,METROLINK TVM,17/08/2016,5.7,Public Transport -  Staff - General,"Bus Lines, Charters, Tour Buses",GPC
Statement 18/08/2016 -18/09/2016,Corporate Resources,METROLINK TVM,06/09/2016,3.6,Public Transport -  Staff - General,"Bus Lines, Charters, Tour Buses",GPC
Statement 18/08/2016 -18/09/2016,Corporate Resources,METROLINK TVM,07/09/2016,3.8,Public Transport -  Staff - General,"Bus Lines, Charters, Tour Buses",GPC
Statement 18/08/2016 -18/09/2016,Corporate Resources,METROLINK TVM,12/09/2016,5.7,Public Transport -  Staff - General,"Bus Lines, Charters, Tour Buses",GPC
Statement 18/08/2016 -18/09/2016,Corporate Resources,METROLINK TVM,13/09/2016,3.6,Public Transport -  Staff - General,"Bus Lines, Charters, Tour Buses",GPC
Statement 18/08/2016 -18/09/2016,Corporate Resources,MINDFULNESSCIC.CO.,24/08/2016,595,Training Expenses - General,Schools and Educational Services-Not Elsewhere Cla,GPC
Statement 18/08/2016 -18/09/2016,Corporate Resources,MINDFULNESSCIC.CO.,24/08/2016,595,Training Expenses - General,Schools and Educational Services-Not Elsewhere Cla,GPC
Statement 18/08/2016 -18/09/2016,Corporate Resources,MINDFULNESSCIC.CO.,07/09/2016,195,Training Expenses - General,Schools and Educational Services-Not Elsewhere Cla,GPC
Statement 18/08/2016 -18/09/2016,Corporate Resources,NANDOS,28/08/2016,77.42,Other Allowances/Expenses - General,"Eating Places, Restaurants",GPC
Statement 18/08/2016 -18/09/2016,Corporate Resources,NANDOS,03/09/2016,111.21,Other Allowances/Expenses - General,"Eating Places, Restaurants",GPC
Statement 18/08/2016 -18/09/2016,Corporate Resources,NANDOS,10/09/2016,107.67,Other Allowances/Expenses - General,"Eating Places, Restaurants",GPC
Statement 18/08/2016 -18/09/2016,Corporate Resources,NORTHERN RAIL LTD-,23/08/2016,12.9,Public Transport -  Staff - General,Passenger Railways,GPC
Statement 18/08/2016 -18/09/2016,Corporate Resources,OFSTED INTERNET,15/09/2016,114,Other Expenditure - General,Government Services-Not Elsewhere Classified,GPC
Statement 18/08/2016 -18/09/2016,Corporate Resources,OYSTER RENEW WEB,19/08/2016,-50,Public Transport -  Staff - General,Passenger Railways,GPC
Statement 18/08/2016 -18/09/2016,Corporate Resources,OYSTER RENEW WEB,05/09/2016,50,Public Transport -  Staff - General,Passenger Railways,GPC
Statement 18/08/2016 -18/09/2016,Corporate Resources,P & R BUILDING SUPPLIE,15/09/2016,42,Other Services - General,"Building Materials, Lumber Stores",GPC
Statement 18/08/2016 -18/09/2016,Corporate Resources,PASTY SHOP,24/08/2016,12.38,Subsistence - General,Fast-Food Restaurants (Quick Payment Service Pilot,GPC
Statement 18/08/2016 -18/09/2016,Corporate Resources,PASTY SHOP,25/08/2016,5.84,Subsistence - General,Fast-Food Restaurants (Quick Payment Service Pilot,GPC
Statement 18/08/2016 -18/09/2016,Corporate Resources,PAYPAL  EYESOPENCRE,24/08/2016,506.46,Training Expenses - General,Charitable and Social Service Organizations,GPC
Statement 18/08/2016 -18/09/2016,Corporate Resources,PAYPAL  LONDONSPACE,06/09/2016,213,Hospitality - General,"Employment Agencies, Temporary Help Services",GPC
Statement 18/08/2016 -18/09/2016,Corporate Resources,PENTAHOTEL IPSWICH,14/09/2016,129,Subsistence - General,Penta Hotels,GPC
Statement 18/08/2016 -18/09/2016,Corporate Resources,POULTON-LE-FYLDE STN T,08/09/2016,91,Public Transport -  Staff - General,Passenger Railways,GPC
Statement 18/08/2016 -18/09/2016,Corporate Resources,POULTON-LE-FYLDE STN T,13/09/2016,20,Public Transport -  Staff - General,Passenger Railways,GPC
Statement 18/08/2016 -18/09/2016,Corporate Resources,POUNDSTRETCHER 292,06/09/2016,11.01,Materials - General,"Drapery, Window Coverings, and Upholstery Stores",GPC
Statement 18/08/2016 -18/09/2016,Corporate Resources,PREMIER INN 44536195,12/09/2016,166.65,Training Expenses - General,PREMIER TRAVEL,GPC
Statement 18/08/2016 -18/09/2016,Corporate Resources,PREMIER INN 44536195,12/09/2016,469.95,Training Expenses - General,PREMIER TRAVEL,GPC
Statement 18/08/2016 -18/09/2016,Corporate Resources,PREMIER INN 44536195,12/09/2016,76,Training Expenses - General,PREMIER TRAVEL,GPC
Statement 18/08/2016 -18/09/2016,Corporate Resources,PREMIER INN 44536195,12/09/2016,70.82,Training Expenses - General,PREMIER TRAVEL,GPC
Statement 18/08/2016 -18/09/2016,Corporate Resources,PREMIER INN44521260,08/09/2016,-8,Subsistence - General,PREMIER TRAVEL,GPC
Statement 18/08/2016 -18/09/2016,Corporate Resources,PREMIER INN44531610,13/09/2016,209.14,Training Expenses - General,PREMIER TRAVEL,GPC
Statement 18/08/2016 -18/09/2016,Corporate Resources,PRET A MANGER,07/09/2016,6.24,Subsistence - General,"Eating Places, Restaurants",GPC
Statement 18/08/2016 -18/09/2016,Corporate Resources,PRET A MANGER,07/09/2016,6.44,Subsistence - General,"Eating Places, Restaurants",GPC
Statement 18/08/2016 -18/09/2016,Corporate Resources,PRET A MANGER,15/09/2016,2.49,Subsistence - General,"Eating Places, Restaurants",GPC
Statement 18/08/2016 -18/09/2016,Corporate Resources,PREZZO,07/09/2016,16.87,Subsistence - General,"Eating Places, Restaurants",GPC
Statement 18/08/2016 -18/09/2016,Corporate Resources,PUMPKIN,08/09/2016,3.4,Subsistence - General,Fast-Food Restaurants (Quick Payment Service Pilot,GPC
Statement 18/08/2016 -18/09/2016,Corporate Resources,PUMPKIN CAFE,17/08/2016,7.77,Subsistence - General,"Package Stores, Beer, Wine, Liquor",GPC
Statement 18/08/2016 -18/09/2016,Corporate Resources,R MASSEY & SON LTD,15/09/2016,14.16,Other Expenditure - General,Hardware Stores,GPC
Statement 18/08/2016 -18/09/2016,Corporate Resources,RAIL GOURMET UK,08/09/2016,3.2,Subsistence - General,"Eating Places, Restaurants",GPC
Statement 18/08/2016 -18/09/2016,Corporate Resources,RYMAN,15/09/2016,47.77,Stationery - General,"Stationery, Office, and School Supply Stores",GPC
Statement 18/08/2016 -18/09/2016,Corporate Resources,SAGE PUBLICATIONS UK,27/08/2016,77.97,Training Expenses - General,News Dealers and Newsstands,GPC
Statement 18/08/2016 -18/09/2016,Corporate Resources,SAINSBURYS S/MKTS,19/08/2016,30.3,Materials - General,"Grocery Stores, Supermarkets",GPC
Statement 18/08/2016 -18/09/2016,Corporate Resources,SAINSBURYS S/MKTS,26/08/2016,3,Materials - General,"Grocery Stores, Supermarkets",GPC
Statement 18/08/2016 -18/09/2016,Corporate Resources,SAINSBURYS S/MKTS,07/09/2016,16,Materials - General,"Grocery Stores, Supermarkets",GPC
Statement 18/08/2016 -18/09/2016,Corporate Resources,SAINSBURY'S SMKT,17/08/2016,10.1,Subsistence - General,"Grocery Stores, Supermarkets",GPC
Statement 18/08/2016 -18/09/2016,Corporate Resources,SALTHOUSE HARBOUR,13/09/2016,13,Subsistence - General,"Lodging-Hotels, Motels, Resorts",GPC
Statement 18/08/2016 -18/09/2016,Corporate Resources,SCREWFIX,25/08/2016,10.59,Other Expenditure - General,"Building Materials, Lumber Stores",GPC
Statement 18/08/2016 -18/09/2016,Corporate Resources,SCREWFIX,25/08/2016,6.66,Other Expenditure - General,"Building Materials, Lumber Stores",GPC
Statement 18/08/2016 -18/09/2016,Corporate Resources,SCREWFIX,27/08/2016,19.23,Other Expenditure - General,"Building Materials, Lumber Stores",GPC
Statement 18/08/2016 -18/09/2016,Corporate Resources,SCREWFIX,09/09/2016,5.83,Other Expenditure - General,"Building Materials, Lumber Stores",GPC
Statement 18/08/2016 -18/09/2016,Corporate Resources,SCREWFIX,15/09/2016,3.33,Other Expenditure - General,"Building Materials, Lumber Stores",GPC
Statement 18/08/2016 -18/09/2016,Corporate Resources,SCREWFIX,26/08/2016,23.31,Other Services - General,"Building Materials, Lumber Stores",GPC
Statement 18/08/2016 -18/09/2016,Corporate Resources,SHELL THURCASTON,21/08/2016,8.33,Petrol/Oil/Tyres/Spares - General,Service Stations (with or without Ancillary Servic,GPC
Statement 18/08/2016 -18/09/2016,Corporate Resources,SHELL THURCASTON,14/09/2016,45.84,Petrol/Oil/Tyres/Spares - General,Service Stations (with or without Ancillary Servic,GPC
Statement 18/08/2016 -18/09/2016,Corporate Resources,SHEPSHED AUTO SPARES L,14/09/2016,72.94,Operational Equipment - General,Motorcycle Dealers,GPC
Statement 18/08/2016 -18/09/2016,Corporate Resources,SKILLBASE FIRST AID,05/09/2016,49.99,General Equipment - General,Computer Software Stores,GPC
Statement 18/08/2016 -18/09/2016,Corporate Resources,SLB SUPPLIES LTD,05/09/2016,73,Materials - General,Pet Shops-Pet Food and Supplies,GPC
Statement 18/08/2016 -18/09/2016,Corporate Resources,SLB SUPPLIES LTD,14/09/2016,9,Materials - General,Pet Shops-Pet Food and Supplies,GPC
Statement 18/08/2016 -18/09/2016,Corporate Resources,SLB SUPPLIES LTD,16/09/2016,25,Materials - General,Pet Shops-Pet Food and Supplies,GPC
Statement 18/08/2016 -18/09/2016,Corporate Resources,SLUG AND LETTUCE,23/08/2016,20.28,Subsistence - General,"Eating Places, Restaurants",GPC
Statement 18/08/2016 -18/09/2016,Corporate Resources,ST PANCRAS INTL,12/09/2016,4.05,Public Transport -  Staff - General,"Eating Places, Restaurants",GPC
Statement 18/08/2016 -18/09/2016,Corporate Resources,STAPLES UK,27/08/2016,42.47,Other Expenditure - General,"Stationery, Office, and School Supply Stores",GPC
Statement 18/08/2016 -18/09/2016,Corporate Resources,STAPLES UK,20/08/2016,24.48,Stationery - General,"Stationery, Office, and School Supply Stores",GPC
Statement 18/08/2016 -18/09/2016,Corporate Resources,STAPLES UK,31/08/2016,71.47,Stationery - General,"Stationery, Office, and School Supply Stores",GPC
Statement 18/08/2016 -18/09/2016,Corporate Resources,SYSTON DIY & HARDWARE,08/09/2016,22.46,Other Services - General,Hardware Stores,GPC
Statement 18/08/2016 -18/09/2016,Corporate Resources,Tarpaulin Repair Compan,31/08/2016,56,Materials - General,"Drapery, Window Coverings, and Upholstery Stores",GPC
Statement 18/08/2016 -18/09/2016,Corporate Resources,TAYLORS BUILDBASE,15/09/2016,8.25,Other Services - General,"Building Materials, Lumber Stores",GPC
Statement 18/08/2016 -18/09/2016,Corporate Resources,TEAMVIEWER.COM,22/08/2016,583.33,IT Equipment - Licences,Computer and Data Processing Services,GPC
Statement 18/08/2016 -18/09/2016,Corporate Resources,TESCO STORE 2168,15/09/2016,10,Materials - General,"Grocery Stores, Supermarkets",GPC
Statement 18/08/2016 -18/09/2016,Corporate Resources,TESCO STORES 2044,20/08/2016,10.86,Other Expenditure - General,"Grocery Stores, Supermarkets",GPC
Statement 18/08/2016 -18/09/2016,Corporate Resources,TESCO STORES 2044,20/08/2016,8,Other Expenditure - General,"Grocery Stores, Supermarkets",GPC
Statement 18/08/2016 -18/09/2016,Corporate Resources,TESCO STORES 2044,30/08/2016,5.44,Other Expenditure - General,"Grocery Stores, Supermarkets",GPC
Statement 18/08/2016 -18/09/2016,Corporate Resources,TESCO STORES 2044,13/09/2016,13,Other Expenditure - General,"Grocery Stores, Supermarkets",GPC
Statement 18/08/2016 -18/09/2016,Corporate Resources,TESCO STORES 3269,06/09/2016,2.95,Materials - General,"Grocery Stores, Supermarkets",GPC
Statement 18/08/2016 -18/09/2016,Corporate Resources,TESCO-STORES 6065,16/09/2016,2.29,Other Expenditure - General,"Grocery Stores, Supermarkets",GPC
Statement 18/08/2016 -18/09/2016,Corporate Resources,THE RANGE,09/09/2016,26.76,Other Services - General,Department Stores,GPC
Statement 18/08/2016 -18/09/2016,Corporate Resources,THE SWAN,02/09/2016,70,Subsistence - General,"Eating Places, Restaurants",GPC
Statement 18/08/2016 -18/09/2016,Corporate Resources,TRAINLINE,17/08/2016,52.33,Public Transport -  Staff - General,Passenger Railways,GPC
Statement 18/08/2016 -18/09/2016,Corporate Resources,TRAINLINE,17/08/2016,88.64,Public Transport -  Staff - General,Passenger Railways,GPC
Statement 18/08/2016 -18/09/2016,Corporate Resources,TRAINLINE,15/09/2016,81.19,Public Transport -  Staff - General,Passenger Railways,GPC
Statement 18/08/2016 -18/09/2016,Corporate Resources,TRAINLINE.COM LTD,07/09/2016,255.42,Other Transport Costs - General,Passenger Railways,GPC
Statement 18/08/2016 -18/09/2016,Corporate Resources,TRAINLINE.COM LTD,07/09/2016,161,Training Expenses - General,Passenger Railways,GPC
Statement 18/08/2016 -18/09/2016,Corporate Resources,TRAINLINE.COM LTD,07/09/2016,300,Training Expenses - General,Passenger Railways,GPC
Statement 18/08/2016 -18/09/2016,Corporate Resources,UBER GB SEP02 2HY4H HELP.,02/09/2016,8.39,Public Transport -  Staff - General,Taxicabs and Limousines,GPC
Statement 18/08/2016 -18/09/2016,Corporate Resources,UBER GB SEP08 LDEI2 HELP.,08/09/2016,8.58,Subsistence - General,Taxicabs and Limousines,GPC
Statement 18/08/2016 -18/09/2016,Corporate Resources,UBER GB SEP15 T5GNF HELP.,15/09/2016,8.51,Public Transport -  Staff - General,Taxicabs and Limousines,GPC
Statement 18/08/2016 -18/09/2016,Corporate Resources,UPPER CRUST,17/08/2016,4.14,Subsistence - General,"Package Stores, Beer, Wine, Liquor",GPC
Statement 18/08/2016 -18/09/2016,Corporate Resources,UPPER CRUST,06/09/2016,3.99,Subsistence - General,Fast-Food Restaurants (Quick Payment Service Pilot,GPC
Statement 18/08/2016 -18/09/2016,Corporate Resources,UPPER CRUST,12/09/2016,4.99,Subsistence - General,"Package Stores, Beer, Wine, Liquor",GPC
Statement 18/08/2016 -18/09/2016,Corporate Resources,UPT-EAST MIDLANDS TRN-LB,17/08/2016,11.5,Public Transport -  Staff - General,Professional Services-Not Elsewhere Classified,GPC
Statement 18/08/2016 -18/09/2016,Corporate Resources,UPT-EAST MIDLANDS TRN-LB,18/08/2016,11.5,Public Transport -  Staff - General,Professional Services-Not Elsewhere Classified,GPC
Statement 18/08/2016 -18/09/2016,Corporate Resources,UPT-EAST MIDLANDS TRN-LB,23/08/2016,11.5,Public Transport -  Staff - General,Professional Services-Not Elsewhere Classified,GPC
Statement 18/08/2016 -18/09/2016,Corporate Resources,UPT-EAST MIDLANDS TRN-LB,26/08/2016,23,Public Transport -  Staff - General,Professional Services-Not Elsewhere Classified,GPC
Statement 18/08/2016 -18/09/2016,Corporate Resources,UPT-EAST MIDLANDS TRN-LB,07/09/2016,12,Public Transport -  Staff - General,Professional Services-Not Elsewhere Classified,GPC
Statement 18/08/2016 -18/09/2016,Corporate Resources,UPT-EAST MIDLANDS TRN-LB,12/09/2016,7,Public Transport -  Staff - General,Professional Services-Not Elsewhere Classified,GPC
Statement 18/08/2016 -18/09/2016,Corporate Resources,UPT-EAST MIDLANDS TRN-LB,13/09/2016,12,Public Transport -  Staff - General,Professional Services-Not Elsewhere Classified,GPC
Statement 18/08/2016 -18/09/2016,Corporate Resources,VERDON TIMBER GROUP LI,05/09/2016,83.12,Other Services - General,"Building Materials, Lumber Stores",GPC
Statement 18/08/2016 -18/09/2016,Corporate Resources,VERDON TIMBER GROUP LI,05/09/2016,83.12,Other Services - General,"Building Materials, Lumber Stores",GPC
Statement 18/08/2016 -18/09/2016,Corporate Resources,VRUMI K275LG,06/09/2016,131.4,Subsistence - General,"Lodging-Hotels, Motels, Resorts",GPC
Statement 18/08/2016 -18/09/2016,Corporate Resources,VRUMI N538AG,07/09/2016,53.66,Subsistence - General,"Lodging-Hotels, Motels, Resorts",GPC
Statement 18/08/2016 -18/09/2016,Corporate Resources,WAITROSE 531,18/08/2016,5.99,Materials - General,"Grocery Stores, Supermarkets",GPC
Statement 18/08/2016 -18/09/2016,Corporate Resources,WAITROSE 636,08/09/2016,10.83,Subsistence - General,"Grocery Stores, Supermarkets",GPC
Statement 18/08/2016 -18/09/2016,Corporate Resources,WEST COAST TRAINS,22/08/2016,38.5,Public Transport -  Staff - General,Passenger Railways,GPC
Statement 18/08/2016 -18/09/2016,Corporate Resources,WICKES,23/08/2016,20.82,Other Services - General,"Building Materials, Lumber Stores",GPC
Statement 18/08/2016 -18/09/2016,Corporate Resources,WICKES,03/09/2016,20.97,R & M of Buildings - General,"Building Materials, Lumber Stores",GPC
Statement 18/08/2016 -18/09/2016,Corporate Resources,WICKES BUILDING,14/09/2016,37.89,R & M of Buildings - General,"Building Materials, Lumber Stores",GPC
Statement 18/08/2016 -18/09/2016,Corporate Resources,WILKO DEEPDALE 419,31/08/2016,6.2,Stationery - General,Household Appliance Stores,GPC
Statement 18/08/2016 -18/09/2016,Corporate Resources,WILKO RETAIL LIMIT,23/08/2016,31.85,Other Services - General,Household Appliance Stores,GPC
Statement 18/08/2016 -18/09/2016,Corporate Resources,WILKO RETAIL LIMIT,23/08/2016,5,Other Services - General,Household Appliance Stores,GPC
Statement 18/08/2016 -18/09/2016,Corporate Resources,WM MORRISON 054,18/08/2016,3,Other Expenditure - General,"Grocery Stores, Supermarkets",GPC
Statement 18/08/2016 -18/09/2016,Corporate Resources,WM MORRISON 054,17/09/2016,15.17,Other Expenditure - General,"Grocery Stores, Supermarkets",GPC
Statement 18/08/2016 -18/09/2016,Corporate Resources,WP-HEMMING GROUP L,15/09/2016,398,Training Expenses - General,Business Services-Not Elsewhere Classified,GPC
Statement 18/08/2016 -18/09/2016,Corporate Resources,WP-RUBBER STAMPS ETC,07/09/2016,8.63,General Equipment - General,Miscellaneous General Merchandise Stores,GPC
Statement 18/08/2016 -18/09/2016,Corporate Resources,WWW.ALLFLEX.CO.UK,02/09/2016,15.54,Other Services - General,Nondurable Goods Not Elsewhere Classified,GPC
Statement 18/08/2016 -18/09/2016,Corporate Resources,WWW.BCO.ORG.UK,17/08/2016,170,Materials - General,Membership Organizations-Not Elsewhere Classified,GPC
Statement 18/08/2016 -18/09/2016,Corporate Resources,WWW.BCO.ORG.UK,17/08/2016,53,Materials - General,Membership Organizations-Not Elsewhere Classified,GPC
Statement 18/08/2016 -18/09/2016,Corporate Resources,WWW.BEAUCARE.COM,12/09/2016,97.84,Other Equipment & Materials - General,"Medical Services, Health Practitioners-Not Elsewhe",GPC
Statement 18/08/2016 -18/09/2016,Corporate Resources,WWW.CHILDMENTALHEALTHC,31/08/2016,174,Training Expenses - General,"Counseling Service-Debt, Marriage, Personal",GPC
Statement 18/08/2016 -18/09/2016,Corporate Resources,WWW.CIPFA.ORG.UK/PFMCO,24/08/2016,180,Training Expenses - General,Membership Organizations-Not Elsewhere Classified,GPC
Statement 18/08/2016 -18/09/2016,Corporate Resources,WWW.CIPS.ORG,01/09/2016,370.26,Training Expenses - General,Membership Organizations-Not Elsewhere Classified,GPC
Statement 18/08/2016 -18/09/2016,Corporate Resources,WWW.CIPS.ORG,13/09/2016,123.42,Training Expenses - General,Membership Organizations-Not Elsewhere Classified,GPC
Statement 18/08/2016 -18/09/2016,Corporate Resources,WWW.COMMIDEA.COM,05/09/2016,96.97,IT Equipment - General,Computer and Data Processing Services,GPC
Statement 18/08/2016 -18/09/2016,Corporate Resources,WWW.FOLKESTONEFIXINGS.,27/08/2016,28.33,Other Expenditure - General,"Building Materials, Lumber Stores",GPC
Statement 18/08/2016 -18/09/2016,Corporate Resources,WWW.IRONMONGERYDIRECT.,14/09/2016,16.62,R & M of Buildings - General,"Glass, Paint, Wallpaper Stores",GPC
Statement 18/08/2016 -18/09/2016,Corporate Resources,WWW.JUSTINKANDPAPER.CO,14/09/2016,39.99,Stationery - General,"Stationary, Office Supplies, Printing and Writing",GPC
Statement 18/08/2016 -18/09/2016,Corporate Resources,WWW.OFCOM.ORG.UK,12/09/2016,112.5,Road Licences - General,Professional Services-Not Elsewhere Classified,GPC
Statement 18/08/2016 -18/09/2016,Corporate Resources,WWW.SCOTPLANTSDIRECT.C,09/09/2016,189.34,Other Expenditure - General,"Lawn and Garden Supply Stores, Nurseries",GPC
Statement 18/08/2016 -18/09/2016,Corporate Resources,WWW.TAKEAWAY.JE,27/08/2016,64.52,Other Allowances/Expenses - General,"Eating Places, Restaurants",GPC
Statement 18/08/2016 -18/09/2016,Corporate Resources,WWW.TOOLSANDTIMBER.CO.,07/09/2016,38.11,Materials - General,Variety Stores,GPC
Statement 18/08/2016 -18/09/2016,Corporate Resources,WWW.WESTMINSTER-BRIEFI,06/09/2016,180,Conference - General,Business and Secretarial Schools,GPC
Statement 18/08/2016 -18/09/2016,E&T,Amazon Svcs Europe SAR,02/09/2016,10.98,Books - General,Book Stores,GPC
Statement 18/08/2016 -18/09/2016,E&T,Amazon UK Marketplace,18/08/2016,23.36,Materials - General,Miscellaneous and Specialty Retail Stores,GPC
Statement 18/08/2016 -18/09/2016,E&T,Amazon UK Marketplace,02/09/2016,12.05,Materials - General,Miscellaneous and Specialty Retail Stores,GPC
Statement 18/08/2016 -18/09/2016,E&T,Amazon UK Marketplace,04/09/2016,13.58,Materials - General,Miscellaneous and Specialty Retail Stores,GPC
Statement 18/08/2016 -18/09/2016,E&T,Amazon UK Marketplace,16/09/2016,14.9,Materials - General,Miscellaneous and Specialty Retail Stores,GPC
Statement 18/08/2016 -18/09/2016,E&T,AMAZON UK RETAIL AMAZON.C,02/09/2016,25.05,Materials - General,Miscellaneous and Specialty Retail Stores,GPC
Statement 18/08/2016 -18/09/2016,E&T,BLABY DISTRICT COUNCIL,02/09/2016,98.6,Public Transport -  Staff - General,Government Services-Not Elsewhere Classified,GPC
Statement 18/08/2016 -18/09/2016,E&T,DIGITALID.CO.UK,06/09/2016,87.53,Other Services - General,"Stationery, Office, and School Supply Stores",GPC
Statement 18/08/2016 -18/09/2016,E&T,DVLA VEHICLE TAX,18/08/2016,167.5,Road Licences - General,Government Services-Not Elsewhere Classified,GPC
Statement 18/08/2016 -18/09/2016,E&T,DVLA VEHICLE TAX,18/08/2016,167.5,Road Licences - General,Government Services-Not Elsewhere Classified,GPC
Statement 18/08/2016 -18/09/2016,E&T,DVLA VEHICLE TAX,18/08/2016,237.5,Road Licences - General,Government Services-Not Elsewhere Classified,GPC
Statement 18/08/2016 -18/09/2016,E&T,DVLA VEHICLE TAX,18/08/2016,167.5,Road Licences - General,Government Services-Not Elsewhere Classified,GPC
Statement 18/08/2016 -18/09/2016,E&T,DVLA VEHICLE TAX,18/08/2016,167.5,Road Licences - General,Government Services-Not Elsewhere Classified,GPC
Statement 18/08/2016 -18/09/2016,E&T,DVLA VEHICLE TAX,18/08/2016,167.5,Road Licences - General,Government Services-Not Elsewhere Classified,GPC
Statement 18/08/2016 -18/09/2016,E&T,DVLA VEHICLE TAX,18/08/2016,232.5,Road Licences - General,Government Services-Not Elsewhere Classified,GPC
Statement 18/08/2016 -18/09/2016,E&T,DVLA VEHICLE TAX,18/08/2016,237.5,Road Licences - General,Government Services-Not Elsewhere Classified,GPC
Statement 18/08/2016 -18/09/2016,E&T,DVLA VEHICLE TAX,18/08/2016,167.5,Road Licences - General,Government Services-Not Elsewhere Classified,GPC
Statement 18/08/2016 -18/09/2016,E&T,DVLA VEHICLE TAX,18/08/2016,237.5,Road Licences - General,Government Services-Not Elsewhere Classified,GPC
Statement 18/08/2016 -18/09/2016,E&T,DVLA VEHICLE TAX,18/08/2016,167.5,Road Licences - General,Government Services-Not Elsewhere Classified,GPC
Statement 18/08/2016 -18/09/2016,E&T,DVLA VEHICLE TAX,18/08/2016,167.5,Road Licences - General,Government Services-Not Elsewhere Classified,GPC
Statement 18/08/2016 -18/09/2016,E&T,DVLA VEHICLE TAX,18/08/2016,167.5,Road Licences - General,Government Services-Not Elsewhere Classified,GPC
Statement 18/08/2016 -18/09/2016,E&T,DVLA VEHICLE TAX,18/08/2016,237.5,Road Licences - General,Government Services-Not Elsewhere Classified,GPC
Statement 18/08/2016 -18/09/2016,E&T,DVLA VEHICLE TAX,18/08/2016,237.5,Road Licences - General,Government Services-Not Elsewhere Classified,GPC
Statement 18/08/2016 -18/09/2016,E&T,DVLA VEHICLE TAX,18/08/2016,237.5,Road Licences - General,Government Services-Not Elsewhere Classified,GPC
Statement 18/08/2016 -18/09/2016,E&T,DVLA VEHICLE TAX,07/09/2016,232.5,Road Licences - General,Government Services-Not Elsewhere Classified,GPC
Statement 18/08/2016 -18/09/2016,E&T,DVLA VEHICLE TAX,07/09/2016,167.5,Road Licences - General,Government Services-Not Elsewhere Classified,GPC
Statement 18/08/2016 -18/09/2016,E&T,DVSA MOT COMP 2,18/08/2016,205,Materials - General,Government Services-Not Elsewhere Classified,GPC
Statement 18/08/2016 -18/09/2016,E&T,EASTMIDLANDSTRAINS,25/08/2016,77.5,Casual/Essential - General,Passenger Railways,GPC
Statement 18/08/2016 -18/09/2016,E&T,EASTMIDLANDSTRAINS,15/09/2016,181.5,Casual/Essential - General,Passenger Railways,GPC
Statement 18/08/2016 -18/09/2016,E&T,EASTMIDLANDSTRAINS,02/09/2016,25,Public Transport -  Staff - General,Passenger Railways,GPC
Statement 18/08/2016 -18/09/2016,E&T,EASTMIDLANDSTRAINS,08/09/2016,14.8,Public Transport -  Staff - General,Passenger Railways,GPC
Statement 18/08/2016 -18/09/2016,E&T,EMA EMBROIDERY,15/09/2016,159.99,Other Services - General,Miscellaneous and Specialty Retail Stores,GPC
Statement 18/08/2016 -18/09/2016,E&T,INGENICO (UK) LTD,16/09/2016,29.79,Other Equipment & Materials - General,"Equipment Rental and Leasing Services, Tool Rental",GPC
Statement 18/08/2016 -18/09/2016,E&T,NRS HEALTHCARE,08/09/2016,41.55,Cleaning Materials - General,Laboratory/Medical/Dental/Ophthalmic Hospital Equi,GPC
Statement 18/08/2016 -18/09/2016,E&T,NRS HEALTHCARE,13/09/2016,-41.55,Cleaning Materials - General,Laboratory/Medical/Dental/Ophthalmic Hospital Equi,GPC
Statement 18/08/2016 -18/09/2016,E&T,PARRS,17/08/2016,140,Materials - General,Hardware Stores,GPC
Statement 18/08/2016 -18/09/2016,E&T,PARRS,17/08/2016,56.8,Materials - General,Hardware Stores,GPC
Statement 18/08/2016 -18/09/2016,E&T,PAYPAL  ABC AWARDS,05/09/2016,35,Petrol/Oil/Tyres/Spares - General,Charitable and Social Service Organizations,GPC
Statement 18/08/2016 -18/09/2016,E&T,PAYPAL  ABC AWARDS,05/09/2016,35,Petrol/Oil/Tyres/Spares - General,Charitable and Social Service Organizations,GPC
Statement 18/08/2016 -18/09/2016,E&T,PAYPAL  ABC AWARDS,05/09/2016,35,Petrol/Oil/Tyres/Spares - General,Charitable and Social Service Organizations,GPC
Statement 18/08/2016 -18/09/2016,E&T,PAYPAL  ABC AWARDS,05/09/2016,35,Petrol/Oil/Tyres/Spares - General,Charitable and Social Service Organizations,GPC
Statement 18/08/2016 -18/09/2016,E&T,PAYPAL  ABC AWARDS,06/09/2016,35,Petrol/Oil/Tyres/Spares - General,Charitable and Social Service Organizations,GPC
Statement 18/08/2016 -18/09/2016,E&T,PAYPAL  JIANWEIZHEN,02/09/2016,10.77,Materials - General,"Hobby, Toy, and Game Shops",GPC
Statement 18/08/2016 -18/09/2016,E&T,TRAINLINE.COM LTD,02/09/2016,162.5,Public Transport -  Staff - General,Passenger Railways,GPC
Statement 18/08/2016 -18/09/2016,E&T,TRAINLINE.COM LTD,05/09/2016,133,Public Transport -  Staff - General,Passenger Railways,GPC
Statement 18/08/2016 -18/09/2016,E&T,VODAFONE LTD,26/08/2016,20.83,Telephones - General,Telecommunication Service Including Local and Long,GPC
Statement 18/08/2016 -18/09/2016,E&T,WWW.ALDERCROSS.COM,16/09/2016,428.4,Schools Agency staff - Teaching Staff,"Management, Consulting and Public Relations Servic",GPC
Statement 18/08/2016 -18/09/2016,E&T,WWW.ALDERCROSS.COM,16/09/2016,428.4,Schools Agency staff - Teaching Staff,"Management, Consulting and Public Relations Servic",GPC
Statement 18/08/2016 -18/09/2016,E&T,WWW.INCARSAFETYCENTRE.,30/08/2016,209.52,Other Services - General,"Automotive Parts, Accessories Stores",GPC
Statement 18/08/2016 -18/09/2016,E&T,WWW.INCARSAFETYCENTRE.,06/09/2016,209.52,Other Services - General,"Automotive Parts, Accessories Stores",GPC
Statement 18/08/2016 -18/09/2016,E&T,WWW.IPAQREPAIR.CO.UK,18/08/2016,99.9,IT Equipment - Maintenance,"Computer Maintenance, Repair, and Services Not Els",GPC
Statement 18/08/2016 -18/09/2016,E&T,WWW.IPAQREPAIR.CO.UK,07/09/2016,68.9,IT Equipment - Maintenance,"Computer Maintenance, Repair, and Services Not Els",GPC
Statement 18/08/2016 -18/09/2016,E&T,WWW.NEOPOST.CO.UK,16/09/2016,306,Stationery - General,"Stationary, Office Supplies, Printing and Writing",GPC
Statement 18/08/2016 -18/09/2016,E&T,WWW.WEATHERWRITER.COM,15/09/2016,120.35,Stationery - General,Miscellaneous and Specialty Retail Stores,GPC
Statement 18/08/2016 -18/09/2016,Leicestershire Highways,Amazon UK Marketplace,18/09/2016,64.74,Materials - General,Miscellaneous and Specialty Retail Stores,GPC
Statement 18/08/2016 -18/09/2016,Leicestershire Highways,DVLA VEHICLE TAX,18/08/2016,142.5,Road Licences - General,Government Services-Not Elsewhere Classified,GPC
Statement 18/08/2016 -18/09/2016,Leicestershire Highways,DVLA VEHICLE TAX,18/08/2016,142.5,Road Licences - General,Government Services-Not Elsewhere Classified,GPC
Statement 18/08/2016 -18/09/2016,Leicestershire Highways,DVLA VEHICLE TAX,18/08/2016,142.5,Road Licences - General,Government Services-Not Elsewhere Classified,GPC
Statement 18/08/2016 -18/09/2016,Leicestershire Highways,DVLA VEHICLE TAX,07/09/2016,232.5,Road Licences - General,Government Services-Not Elsewhere Classified,GPC
Statement 18/08/2016 -18/09/2016,Public Health,Amazon UK Marketplace,22/08/2016,22.79,Other Equipment & Materials - General,Miscellaneous and Specialty Retail Stores,GPC
Statement 18/08/2016 -18/09/2016,Public Health,Amazon UK Marketplace,02/09/2016,82.74,Other Equipment & Materials - General,Miscellaneous and Specialty Retail Stores,GPC
Statement 18/08/2016 -18/09/2016,Public Health,Amazon UK Marketplace,05/09/2016,8.9,Other Equipment & Materials - General,Miscellaneous and Specialty Retail Stores,GPC
Statement 18/08/2016 -18/09/2016,Public Health,Amazon UK Marketplace,16/09/2016,19.74,Other Equipment & Materials - General,Miscellaneous and Specialty Retail Stores,GPC
Statement 18/08/2016 -18/09/2016,Public Health,Amazon UK Marketplace,23/08/2016,3.76,Publicity/Marketing - General,Book Stores,GPC
Statement 18/08/2016 -18/09/2016,Public Health,Amazon UK Marketplace,23/08/2016,5.9,Publicity/Marketing - General,Miscellaneous and Specialty Retail Stores,GPC
Statement 18/08/2016 -18/09/2016,Public Health,Amazon UK Marketplace,24/08/2016,19.05,Publicity/Marketing - General,Book Stores,GPC
Statement 18/08/2016 -18/09/2016,Public Health,Amazon UK Marketplace,24/08/2016,6.5,Publicity/Marketing - General,Book Stores,GPC
Statement 18/08/2016 -18/09/2016,Public Health,Amazon UK Marketplace,24/08/2016,124.94,Publicity/Marketing - General,Miscellaneous and Specialty Retail Stores,GPC
Statement 18/08/2016 -18/09/2016,Public Health,Amazon UK Marketplace,25/08/2016,50.82,Publicity/Marketing - General,Book Stores,GPC
Statement 18/08/2016 -18/09/2016,Public Health,Amazon UK Marketplace,25/08/2016,19.41,Publicity/Marketing - General,Miscellaneous and Specialty Retail Stores,GPC
Statement 18/08/2016 -18/09/2016,Public Health,ASDA HOME SHOPPING,06/09/2016,43,Provisions - General,"Grocery Stores, Supermarkets",GPC
Statement 18/08/2016 -18/09/2016,Public Health,BB  Women in Sport,16/09/2016,35,Other Services - General,Charitable and Social Service Organizations,GPC
Statement 18/08/2016 -18/09/2016,Public Health,FACEBK 5P3RR9WW32,31/08/2016,70,Advertising - General,Advertising Services,GPC
Statement 18/08/2016 -18/09/2016,Public Health,LOVE2SHOP.CO.UK,26/08/2016,80,Other Equipment & Materials - General,"Civic, Social, and Fraternal Associations",GPC
Statement 18/08/2016 -18/09/2016,Public Health,MAKRO SELF SERVICE,02/09/2016,62.46,Provisions - General,Wholesale Clubs,GPC
Statement 18/08/2016 -18/09/2016,Public Health,MAKRO SELF SERVICE,16/09/2016,-62.46,Provisions - General,Wholesale Clubs,GPC
Statement 18/08/2016 -18/09/2016,Public Health,NET WORLD SPORTS,31/08/2016,498.91,Other Equipment & Materials - General,Sporting Goods Stores,GPC
Statement 18/08/2016 -18/09/2016,Public Health,PARK INN NOTTINGHAM,15/09/2016,16,Subsistence - General,"Lodging-Hotels, Motels, Resorts",GPC
Statement 18/08/2016 -18/09/2016,Public Health,PARKING LEIC CC,07/09/2016,6,Subsistence - General,Government Services-Not Elsewhere Classified,GPC
Statement 18/08/2016 -18/09/2016,Public Health,VODAFONE PAYG MBB TOPU,09/09/2016,15,Telephones - Mobile Phones,Telecommunication Service Including Local and Long,GPC
Statement 18/08/2016 -18/09/2016,Public Health,WWW.STAPLES.CO.UK,30/08/2016,9.3,Stationery - General,"Stationery, Office, and School Supply Stores",GPC
Statement 18/08/2016 -18/09/2016,Public Health,WWW.STAPLES.CO.UK,02/09/2016,-3.7,Stationery - General,"Stationery, Office, and School Supply Stores",GPC
"**Amounts stated are net of VAT, except where VAT has not been recovered.",,,,,,,
